Body Name,Body,Service Division Label,Service Division Code,Organisational Unit,Expenditure Category,Expenditure Code,CIPFA detailed expediture type,CIPFA detailed expediture code,Narrative,Date,Transaction number,Net Amount,Capital and Revenue,Supplier Name,Supplier ID,,
Chorley Borough Council,http://statistics.data.gov.uk/id/local-authority/30UE,Central Support Services,1009,Customer & Digital,Telephones - Other,40085,Communication and Computing,5028,Adept Telecom - July 2021,11/08/2021,0158007,"1,609.64",Revenue,Adept Telecom PLC,77452,,
Chorley Borough Council,http://statistics.data.gov.uk/id/local-authority/30UE,Central Support Services,1009,Customer & Digital,Telephones - Other,40085,Communication and Computing,5028,Adept Telecom - Aug 2021,25/08/2021,0159865,"1,609.64",Revenue,Adept Telecom PLC,77452,,
Chorley Borough Council,http://statistics.data.gov.uk/id/local-authority/30UE,Tourism,1039,Policy & Governance,Tools & Equipment - Hire,40004,"Equipment, Furniture & Materia",5023,"Generator hire. Delivery to Astley Park, via Park Road Chorley",11/08/2021,0159548,404.00,Revenue,Adlington Welding Supplies Ltd,21942,,
Chorley Borough Council,http://statistics.data.gov.uk/id/local-authority/30UE,Tourism,1039,Policy & Governance,Tools & Equipment - Hire,40004,"Equipment, Furniture & Materia",5023,"Generator hire. Delivery to Astley Park, via Park Road Chorley",13/08/2021,0159704,866.25,Revenue,Adlington Welding Supplies Ltd,21942,,
Chorley Borough Council,http://statistics.data.gov.uk/id/local-authority/30UE,Tourism,1039,Policy & Governance,Tools & Equipment - Hire,40004,"Equipment, Furniture & Materia",5023,Generator Hire,13/08/2021,0159704,86.00,Revenue,Adlington Welding Supplies Ltd,21942,,
Chorley Borough Council,http://statistics.data.gov.uk/id/local-authority/30UE,Unapportionable Central OHeads,1009,Customer & Digital,Bank Charges,40151,Miscellaneous Expenses,5034,ad ac fee,11/08/2021,0159665,10.00,Revenue,Allpay Net Ltd,17242,,
Chorley Borough Council,http://statistics.data.gov.uk/id/local-authority/30UE,Unapportionable Central OHeads,1009,Customer & Digital,Bank Charges,40151,Miscellaneous Expenses,5034,post office,11/08/2021,0159665,585.08,Revenue,Allpay Net Ltd,17242,,
Chorley Borough Council,http://statistics.data.gov.uk/id/local-authority/30UE,Central Support Services,1009,Customer & Digital,Bank Charges,40151,Miscellaneous Expenses,5034,paypoint,11/08/2021,0159665,197.60,Revenue,Allpay Net Ltd,17242,,
Chorley Borough Council,http://statistics.data.gov.uk/id/local-authority/30UE,Central Support Services,1009,Customer & Digital,Bank Charges,40151,Miscellaneous Expenses,5034,webcon,11/08/2021,0159665,46.00,Revenue,Allpay Net Ltd,17242,,
Chorley Borough Council,http://statistics.data.gov.uk/id/local-authority/30UE,Capital,Capital,Communities,Main Contractor,03007,Capital Expenditure,Capital,Outstanding lighting consultancy works (originally PRD053933 now closed),13/08/2021,0159745,"1,281.00",Capital,Altitude Services Ltd,77719,,
Chorley Borough Council,http://statistics.data.gov.uk/id/local-authority/30UE,Community Development,1097,Commercial & Property,Planned Maintenance,20006,Repairs Maintenance & Alts,5005,"INSTALL NEW SMOKE DETECTOR OUTSIDE MPS OFFICE, REMOVE AND DISPOSE OF EXISITNG UNIT.",06/08/2021,0159113,317.63,Revenue,Amalgamated Ltd,78289,,
Chorley Borough Council,http://statistics.data.gov.uk/id/local-authority/30UE,Central Support Services,1009,Customer & Digital,Computer Software-Additional,40102,Communication and Computing,5028,"Amazon AWS web services - 718576685325 Cloud charges, June 2021",18/08/2021,0159054,"2,051.32",Revenue,Amazon Web Services EMEA SARL,80604,,
Chorley Borough Council,http://statistics.data.gov.uk/id/local-authority/30UE,Central Support Services,1009,Customer & Digital,Computer Software-Additional,40102,Communication and Computing,5028,"Amazon AWS web services - 718576685325 Cloud charges, July 2021",11/08/2021,0159638,"2,620.30",Revenue,Amazon Web Services EMEA SARL,80604,,
Chorley Borough Council,http://statistics.data.gov.uk/id/local-authority/30UE,Central Support Services,1009,Customer & Digital,Computer Software-Additional,40102,Communication and Computing,5028,"Amazon AWS web services - 718576685325 Cloud charges, April 2021",25/08/2021,0159819,"2,302.11",Revenue,Amazon Web Services EMEA SARL,80604,,
Chorley Borough Council,http://statistics.data.gov.uk/id/local-authority/30UE,Tourism,1039,Policy & Governance,Miscellaneous Expenses,40200,Miscellaneous Expenses,5034,Caf� Society Jazz Band for Chorley Flower Show 2021.,18/08/2021,0159762,"1,500.00",Revenue,Anthony Mason,65367,,
Chorley Borough Council,http://statistics.data.gov.uk/id/local-authority/30UE,Elections,1012,Policy & Governance,Rent/Hire Of Premises,20017,Premises Rents,5007,"room hire for polling stations on 6 May 2021, St Marys parish community centre, St Josephs parish community centre",18/08/2021,0158993,"1,940.00",Revenue,APCMC Ltd,16350,,
Chorley Borough Council,http://statistics.data.gov.uk/id/local-authority/30UE,Central Support Services,1009,Communities,Computer Software-Additional,40102,Communication and Computing,5028,"Survey & Mapping - Design & Implementation 0.6 5,500.00 3,300.00, Data Migration 0.6 750.00 450.00",25/08/2021,0159818,"3,750.00",Revenue,Atlantic Geomatics (int`l) Ltd,77816,,
Chorley Borough Council,http://statistics.data.gov.uk/id/local-authority/30UE,Service Management & Support,1009,Customer & Digital,Vehicles and Plant Maintenance,30045,Direct Transport Costs,5016,"PO15 VHD, MOT and service, New tyre, Track control arm, Bulb",25/08/2021,0159218,29.70,Revenue,Autofit,78140,,
Chorley Borough Council,http://statistics.data.gov.uk/id/local-authority/30UE,Service Management & Support,1009,Customer & Digital,Vehicles and Plant Maintenance,30045,Direct Transport Costs,5016,PO15 VHD,25/08/2021,0159218,248.32,Revenue,Autofit,78140,,
Chorley Borough Council,http://statistics.data.gov.uk/id/local-authority/30UE,Service Management & Support,1009,Customer & Digital,Vehicles and Plant Maintenance,30045,Direct Transport Costs,5016,"FL66 OZH, Rear brake discs and Pads",25/08/2021,0159223,257.40,Revenue,Autofit,78140,,
Chorley Borough Council,http://statistics.data.gov.uk/id/local-authority/30UE,Corporate Management,1008,Commercial & Property,Miscellaneous Expenses,40200,Miscellaneous Expenses,5034,Extend the hire period for the 32 x 10 unisex 7 bay toilet 1 @ 148.00 per week (11 weeks) until 24.09.21,06/08/2021,0159518,655.43,Revenue,AVDanzer,81970,,
Chorley Borough Council,http://statistics.data.gov.uk/id/local-authority/30UE,Corporate Management,1008,Commercial & Property,Miscellaneous Expenses,40200,Miscellaneous Expenses,5034,Hire of 9 x 9 disabled toilet /shower 1 69.00 per week (11 weeks) expiring 24.09.21,06/08/2021,0159518,305.57,Revenue,AVDanzer,81970,,
Chorley Borough Council,http://statistics.data.gov.uk/id/local-authority/30UE,Central Support Services,1009,Communities,Professional Fees,40063,Services,5027,Funeral for NAME REDACTED who passed away at Croston Park Care Home. State assisted funeral arranged and completed,25/08/2021,0159963,"1,000.00",Revenue,B Livesey Limited,17943,,
Chorley Borough Council,http://statistics.data.gov.uk/id/local-authority/30UE,Unapportionable Central OHeads,1009,Policy & Governance,Exhibitions & Special Events,40158,Miscellaneous Expenses,5034,Punch and Judy performances for Picnic in the Park on Sunday 15 August. Shows throughout the day from 11:30am - 2:30pm.,25/08/2021,0159878,290.00,Revenue,Brian Gore,18370,,
Chorley Borough Council,http://statistics.data.gov.uk/id/local-authority/30UE,Central Support Services,1009,Customer & Digital,Telephones - Rentals,40083,Communication and Computing,5028,"Phone, Broadband Enterprise Connect",18/08/2021,0159513,"3,945.55",Revenue,British Telecommunications Plc,17131,,
Chorley Borough Council,http://statistics.data.gov.uk/id/local-authority/30UE,Central Support Services,1009,Communities,Miscellaneous Expenses,40200,Miscellaneous Expenses,5034,The JJ Effect - School input project hosted by Byron Highton. Knife Crime project - PCC,18/08/2021,0159641,"2,600.00",Revenue,Byron Highton,82939,,
Chorley Borough Council,http://statistics.data.gov.uk/id/local-authority/30UE,Building Control,1090,Customer & Digital,Agency Staff,13000,Direct Employee Expenses,5001,Agency fees for NAME REDACTED 6 months contract,11/08/2021,0159079,"1,274.00",Revenue,Carrington West Ltd,83124,,
Chorley Borough Council,http://statistics.data.gov.uk/id/local-authority/30UE,Building Control,1090,Customer & Digital,Agency Staff,13000,Direct Employee Expenses,5001,Agency fees for NAME REDACTED 6 months contract,11/08/2021,0159086,"1,274.00",Revenue,Carrington West Ltd,83124,,
Chorley Borough Council,http://statistics.data.gov.uk/id/local-authority/30UE,Building Control,1090,Customer & Digital,Agency Staff,13000,Direct Employee Expenses,5001,Agency fees for NAME REDACTED 6 months contract,11/08/2021,0159087,"1,365.00",Revenue,Carrington West Ltd,83124,,
Chorley Borough Council,http://statistics.data.gov.uk/id/local-authority/30UE,Building Control,1090,Customer & Digital,Agency Staff,13000,Direct Employee Expenses,5001,Agency fees for NAME REDACTED 6 months contract,11/08/2021,0159420,"1,326.00",Revenue,Carrington West Ltd,83124,,
Chorley Borough Council,http://statistics.data.gov.uk/id/local-authority/30UE,Corporate Management,1008,Policy & Governance,Agency Staff,13000,Direct Employee Expenses,5001,Temporary employment of NAME REDACTED,13/08/2021,0157295,480.00,Revenue,Castlefield Recruitment Limited,80454,,
Chorley Borough Council,http://statistics.data.gov.uk/id/local-authority/30UE,Corporate Management,1008,Policy & Governance,Agency Staff,13000,Direct Employee Expenses,5001,Temporary employment of NAME REDACTED,13/08/2021,0158186,600.00,Revenue,Castlefield Recruitment Limited,80454,,
Chorley Borough Council,http://statistics.data.gov.uk/id/local-authority/30UE,Corporate Management,1008,Policy & Governance,Agency Staff,13000,Direct Employee Expenses,5001,NAMES REDACTED final costs,13/08/2021,0158461,600.00,Revenue,Castlefield Recruitment Limited,80454,,
Chorley Borough Council,http://statistics.data.gov.uk/id/local-authority/30UE,Corporate Management,1008,Policy & Governance,Agency Staff,13000,Direct Employee Expenses,5001,NAME REDACTED to 30th June 2021,13/08/2021,0158731,"1,650.00",Revenue,Castlefield Recruitment Limited,80454,,
Chorley Borough Council,http://statistics.data.gov.uk/id/local-authority/30UE,Corporate Management,1008,Policy & Governance,Agency Staff,13000,Direct Employee Expenses,5001,NAMES REDACTED final costs,13/08/2021,0158945,600.00,Revenue,Castlefield Recruitment Limited,80454,,
Chorley Borough Council,http://statistics.data.gov.uk/id/local-authority/30UE,Corporate Management,1008,Policy & Governance,Agency Staff,13000,Direct Employee Expenses,5001,NAMES REDACTED final costs,25/08/2021,0158967,620.00,Revenue,Castlefield Recruitment Limited,80454,,
Chorley Borough Council,http://statistics.data.gov.uk/id/local-authority/30UE,Corporate Management,1008,Policy & Governance,Agency Staff,13000,Direct Employee Expenses,5001,NAMES REDACTED final costs,13/08/2021,0159088,600.00,Revenue,Castlefield Recruitment Limited,80454,,
Chorley Borough Council,http://statistics.data.gov.uk/id/local-authority/30UE,Corporate Management,1008,Policy & Governance,Agency Staff,13000,Direct Employee Expenses,5001,NAME REDACTED June Invoice,13/08/2021,0159421,700.00,Revenue,Castlefield Recruitment Limited,80454,,
Chorley Borough Council,http://statistics.data.gov.uk/id/local-authority/30UE,Corporate Management,1008,Policy & Governance,Agency Staff,13000,Direct Employee Expenses,5001,NAMES REDACTED final costs,18/08/2021,0159560,628.00,Revenue,Castlefield Recruitment Limited,80454,,
Chorley Borough Council,http://statistics.data.gov.uk/id/local-authority/30UE,Corporate Management,1008,Policy & Governance,Agency Staff,13000,Direct Employee Expenses,5001,Temporary employment of NAME REDACTED,13/08/2021,0159561,600.00,Revenue,Castlefield Recruitment Limited,80454,,
Chorley Borough Council,http://statistics.data.gov.uk/id/local-authority/30UE,Corporate Management,1008,Policy & Governance,Agency Staff,13000,Direct Employee Expenses,5001,NAME REDACTED,11/08/2021,0159630,"2,475.00",Revenue,Castlefield Recruitment Limited,80454,,
Chorley Borough Council,http://statistics.data.gov.uk/id/local-authority/30UE,Corporate Management,1008,Policy & Governance,Agency Staff,13000,Direct Employee Expenses,5001,NAMES REDACTED final costs,18/08/2021,0159756,600.00,Revenue,Castlefield Recruitment Limited,80454,,
Chorley Borough Council,http://statistics.data.gov.uk/id/local-authority/30UE,Corporate Management,1008,Policy & Governance,Agency Staff,13000,Direct Employee Expenses,5001,NAMES REDACTED final costs,18/08/2021,0159760,620.00,Revenue,Castlefield Recruitment Limited,80454,,
Chorley Borough Council,http://statistics.data.gov.uk/id/local-authority/30UE,Corporate Management,1008,Policy & Governance,Agency Staff,13000,Direct Employee Expenses,5001,NAMES REDACTED final costs,18/08/2021,0159761,648.00,Revenue,Castlefield Recruitment Limited,80454,,
Chorley Borough Council,http://statistics.data.gov.uk/id/local-authority/30UE,Corporate Management,1008,Policy & Governance,Agency Staff,13000,Direct Employee Expenses,5001,NAME REDACTED,25/08/2021,0160006,"1,650.00",Revenue,Castlefield Recruitment Limited,80454,,
Chorley Borough Council,http://statistics.data.gov.uk/id/local-authority/30UE,Corporate Management,1008,Commercial & Property,Miscellaneous Expenses,40200,Miscellaneous Expenses,5034,"15 off 10mm mild steel bases but with hand, 4 off m10 studs welded To fit the drilled bollards Powder coated yellow",25/08/2021,0159822,"1,780.75",Revenue,Catterall & Wood Ltd,59988,,
Chorley Borough Council,http://statistics.data.gov.uk/id/local-authority/30UE,Democratic Represent and  Mgnt,1007,Communities,Miscellaneous Expenses,40200,Miscellaneous Expenses,5034,July 2021 - March 2022 Group Ex Classes,06/08/2021,0159541,528.00,Revenue,NAME REDACTED,81115,,
Chorley Borough Council,http://statistics.data.gov.uk/id/local-authority/30UE,Central Support Services,1009,Policy & Governance,HR Recruitment - Advertising,15300,Indirect Employee Expenses,5002,Advertising for EHO role on EHN website,06/08/2021,0158949,800.00,Revenue,Chartered Institute of Environmental Health,16224,,
Chorley Borough Council,http://statistics.data.gov.uk/id/local-authority/30UE,Parking Services,1066,Commercial & Property,External Contractors,50008,Private Contractors,5042,"Processing 075, 076, 077, 079, 080, 085, 086, MIPERMIT FEES, CHARGE, ELECPAYBANKFEE, Processing 010, 011",25/08/2021,0159582,410.45,Revenue,Chipside Ltd,22063,,
Chorley Borough Council,http://statistics.data.gov.uk/id/local-authority/30UE,Corporate Management,1008,Customer & Digital,Taxi Testing & Vehicle Safety Report,40234,Services,5027,mot,25/08/2021,0159942,"1,206.70",Revenue,Chorley Autocare Ltd,17110,,
Chorley Borough Council,http://statistics.data.gov.uk/id/local-authority/30UE,Corporate Management,1008,Customer & Digital,Taxi Testing & Vehicle Safety Report,40234,Services,5027,taxi test,25/08/2021,0159942,188.10,Revenue,Chorley Autocare Ltd,17110,,
Chorley Borough Council,http://statistics.data.gov.uk/id/local-authority/30UE,Democratic Represent and  Mgnt,1007,Policy & Governance,External Contractors,50008,Private Contractors,5042,quarter1 fee payable by authority cbc,02/08/2021,0159259,"307,000.00",Revenue,Chorley Leisure Ltd,83376,,
Chorley Borough Council,http://statistics.data.gov.uk/id/local-authority/30UE,Central Support Services,1009,Communities,Children's Activities,40188,Miscellaneous Expenses,5034,Delivery of Holiday Activity and Food programme (HAF),11/08/2021,0159624,"187,705.46",Revenue,Chorley Youth Zone,77339,,
Chorley Borough Council,http://statistics.data.gov.uk/id/local-authority/30UE,Unapportionable Central OHeads,1009,Policy & Governance,Exhibitions & Special Events,40158,Miscellaneous Expenses,5034,First Aid Cover at Corporate Events 2021,11/08/2021,0159625,450.00,Revenue,Chorley`s Angels Community Group,63882,,
Chorley Borough Council,http://statistics.data.gov.uk/id/local-authority/30UE,Unapportionable Central OHeads,1009,Policy & Governance,Training Course Fees,17010,Indirect Employee Expenses,5002,NAME REDACTED - 2 x 110 CIPFA Exams. CFR & AA. 75 late booking fee,11/08/2021,0159572,295.00,Revenue,CIPFA,16201,,
Chorley Borough Council,http://statistics.data.gov.uk/id/local-authority/30UE,Democratic Represent and  Mgnt,1007,Commercial & Property,General Repairs - Reactive,20004,Repairs Maintenance & Alts,5005,"ASLC inv66614, install new emergency lighting in sports hall",11/08/2021,0159667,"1,966.48",Revenue,Corlett Electrical Eng Co Ltd,16271,,
Chorley Borough Council,http://statistics.data.gov.uk/id/local-authority/30UE,Unapportionable Central OHeads,1009,Commercial & Property,General Repairs - Reactive,20004,Repairs Maintenance & Alts,5005,commercial  - reactive repairs,25/08/2021,0160026,322.15,Revenue,Corlett Electrical Eng Co Ltd,16271,,
Chorley Borough Council,http://statistics.data.gov.uk/id/local-authority/30UE,Unapportionable Central OHeads,1009,Commercial & Property,General Repairs - Reactive,20004,Repairs Maintenance & Alts,5005,Cotswold House  - reactive repair works,25/08/2021,0160028,416.55,Revenue,Corlett Electrical Eng Co Ltd,16271,,
Chorley Borough Council,http://statistics.data.gov.uk/id/local-authority/30UE,Democratic Represent and  Mgnt,1007,Commercial & Property,Gas,20014,Energy Costs,5006,may - jun 21,18/08/2021,0159769,"5,521.58",Revenue,Corona Energy Retail 2 Ltd,67249,,
Chorley Borough Council,http://statistics.data.gov.uk/id/local-authority/30UE,Democratic Represent and  Mgnt,1007,Commercial & Property,Gas,20014,Energy Costs,5006,may - jun 21,18/08/2021,0159772,967.25,Revenue,Corona Energy Retail 2 Ltd,67249,,
Chorley Borough Council,http://statistics.data.gov.uk/id/local-authority/30UE,Business Support,1095,Commercial & Property,Gas,20014,Energy Costs,5006,may - jun 21,18/08/2021,0159773,"1,686.03",Revenue,Corona Energy Retail 2 Ltd,67249,,
Chorley Borough Council,http://statistics.data.gov.uk/id/local-authority/30UE,Democratic Represent and  Mgnt,1007,Commercial & Property,Gas,20014,Energy Costs,5006,may - jun 21,18/08/2021,0159774,"1,373.66",Revenue,Corona Energy Retail 2 Ltd,67249,,
Chorley Borough Council,http://statistics.data.gov.uk/id/local-authority/30UE,Unapportionable Central OHeads,1009,Policy & Governance,Search Fees,40068,Services,5027,Creditsafe renewal for the period 27/06/21 to 27/06/22,13/08/2021,0159755,"4,300.00",Revenue,Creditsafe Business Solutions Limited,77447,,
Chorley Borough Council,http://statistics.data.gov.uk/id/local-authority/30UE,Service Management & Support,1009,Customer & Digital,Supplies-Grounds Maintenance,40025,"Equipment, Furniture & Materia",5023,Supply 2 Balmoral 6ft Teak Park Bench - 1.8m. Deliver to Bengal St,25/08/2021,0159759,733.33,Revenue,Cyan t/a Lindsey,61782,,
Chorley Borough Council,http://statistics.data.gov.uk/id/local-authority/30UE,Capital,Capital,Communities,Grants,03002,Capital Expenditure,Capital,ADDRESS REDACTED,25/08/2021,0159944,"4,510.00",Capital,D J Bathing,78482,,
Chorley Borough Council,http://statistics.data.gov.uk/id/local-authority/30UE,Capital,Capital,Communities,Grants,03002,Capital Expenditure,Capital,ADDRESS REDACTED,25/08/2021,0159987,"4,496.50",Capital,D J Bathing,78482,,
Chorley Borough Council,http://statistics.data.gov.uk/id/local-authority/30UE,Unapportionable Central OHeads,1009,Policy & Governance,Exhibitions & Special Events,40158,Miscellaneous Expenses,5034,"20 - Kenwood UHF Digital Hand Portable Complete, 3 - Kenwood Multi Charger Rack, 1 - Ofcom Licence, 11 - Ear Pieces",11/08/2021,0159622,"3,490.00",Revenue,DCS 2 Way Radio Ltd,77666,,
Chorley Borough Council,http://statistics.data.gov.uk/id/local-authority/30UE,Unapportionable Central OHeads,1009,Policy & Governance,Exhibitions & Special Events,40158,Miscellaneous Expenses,5034,non vat,11/08/2021,0159622,75.00,Revenue,DCS 2 Way Radio Ltd,77666,,
Chorley Borough Council,http://statistics.data.gov.uk/id/local-authority/30UE,Open Spaces,1038,Customer & Digital,Grounds Maintenance Contractor,20043,Grounds Maintenance Costs,5013,1 days work for man and machine and hire of dumper for footpath work on Yarrow valley bottoms.,06/08/2021,0159476,350.00,Revenue,Derek R Smith,21092,,
Chorley Borough Council,http://statistics.data.gov.uk/id/local-authority/30UE,Unapportionable Central OHeads,1009,Policy & Governance,Furniture - Purchase,40012,"Equipment, Furniture & Materia",5023,"5 x Aspen Rectangular Desk - 1200x800x730mm maple, 5 x Cable Basket, 7 x Kontrax 4 Door Locker grey, 21 x Orthopaedica",18/08/2021,0159564,"5,903.76",Revenue,Diamond Business Interiors Ltd,53722,,
Chorley Borough Council,http://statistics.data.gov.uk/id/local-authority/30UE,Corporate Management,1008,Customer & Digital,Professional Fees,14011,Direct Employee Expenses,5001,Consultation Fees for Taxi Group 2 Medicals December 2020 ongoing,13/08/2021,0159740,380.00,Revenue,Dr Simon Jones,81046,,
Chorley Borough Council,http://statistics.data.gov.uk/id/local-authority/30UE,Capital,Capital,Communities,Main Contractor,03007,Capital Expenditure,Capital,6x Zephyr Air Quality Monitors and 36 Months Service Subscription 50/50 with SRBC agreed through procurement Waiver,06/08/2021,0158950,"42,000.00",Capital,Earthsense Systems Limited,82245,,
Chorley Borough Council,http://statistics.data.gov.uk/id/local-authority/30UE,Central Support Services,1009,Customer & Digital,Mobile Voice and Data,40086,Communication and Computing,5028,03 aug 2021,25/08/2021,0159908,"3,380.89",Revenue,EE - Orange,16486,,
Chorley Borough Council,http://statistics.data.gov.uk/id/local-authority/30UE,Business Support,1095,Commercial & Property,General Repairs - Reactive,20004,Repairs Maintenance & Alts,5005,Market Walk Extension  - reactive repair works,18/08/2021,0159829,348.21,Revenue,EFT Construction,78195,,
Chorley Borough Council,http://statistics.data.gov.uk/id/local-authority/30UE,Central Support Services,1009,Customer & Digital,IT Software - Annual Licences,40101,Communication and Computing,5028,3 year agreement esri uk EA `QUO-38045-P3L1S5` 22712 per year,13/08/2021,0159578,"22,712.00",Revenue,ESRI (UK) Ltd,19692,,
Chorley Borough Council,http://statistics.data.gov.uk/id/local-authority/30UE,Business Support,1095,Commercial & Property,Internet Charges,40104,Communication and Computing,5028,"For all regular, monthly invoices to cover Operate Growth, Connect Growth and Public IP & Call Charges for the year 2021-22",11/08/2021,0159470,"3,810.00",Revenue,Essensys Ltd,77836,,
Chorley Borough Council,http://statistics.data.gov.uk/id/local-authority/30UE,Unapportionable Central OHeads,1009,Policy & Governance,Mayoral Hospitality,40123,Expenses,5030,"Venue dressing for the Mayor of Chorley`s Civic Dinner at the Lancastrian, Chorley Town Hall, Market Street, PR7 1DP",25/08/2021,0159866,877.00,Revenue,Event Entertainment Ltd (The Big White Events Comp,62042,,
Chorley Borough Council,http://statistics.data.gov.uk/id/local-authority/30UE,Service Management & Support,1009,Customer & Digital,Supplies-Grounds Maintenance,40025,"Equipment, Furniture & Materia",5023,"As per quotation number Q14393, RA-4176382 BELL HOUSING & COUPLIN",02/08/2021,0159255,299.08,Revenue,F R Sharrock Ltd,18091,,
Chorley Borough Council,http://statistics.data.gov.uk/id/local-authority/30UE,Service Management & Support,1009,Customer & Digital,Supplies-Grounds Maintenance,40025,"Equipment, Furniture & Materia",5023,"As per pro forma Number 152541, RA-MBA7024A BOTTOM BLADE N0 8 THK, RA-001190000 SCREW-CSK 3/8-16X11/16",02/08/2021,0159256,355.74,Revenue,F R Sharrock Ltd,18091,,
Chorley Borough Council,http://statistics.data.gov.uk/id/local-authority/30UE,Service Management & Support,1009,Customer & Digital,Supplies-Grounds Maintenance,40025,"Equipment, Furniture & Materia",5023,"As per quote- Q14372, And as per quote- Q14369",25/08/2021,0159392,268.82,Revenue,F R Sharrock Ltd,18091,,
Chorley Borough Council,http://statistics.data.gov.uk/id/local-authority/30UE,Corporate Management,1008,Customer & Digital,Unitary Payment(S),50009,Private Contractors,5042,Provision of waste and recycling collection services 2021-2022,13/08/2021,0159215,"188,051.49",Revenue,FCC Environment Services (UK) Limited,77903,,
Chorley Borough Council,http://statistics.data.gov.uk/id/local-authority/30UE,Tourism,1039,Policy & Governance,External Contractor,40198,Miscellaneous Expenses,5034,"Pontoon Bridge Set up, hire and take down. Monday 26 - Tuesday 3 August",11/08/2021,0159391,"3,495.00",Revenue,Floating Pontoon Solutions Ltd,77486,,
Chorley Borough Council,http://statistics.data.gov.uk/id/local-authority/30UE,Democratic Represent and  Mgnt,1007,Commercial & Property,Tools & Equipment - Hire,40004,"Equipment, Furniture & Materia",5023,All seasons hyproliser  rental monthly fee 420.14 12 months contract,13/08/2021,0158874,420.14,Revenue,Gaffey Technical Services Ltd,18844,,
Chorley Borough Council,http://statistics.data.gov.uk/id/local-authority/30UE,Service Management & Support,1009,Customer & Digital,Vehicles and Plant Maintenance,30045,Direct Transport Costs,5016,as per pro-forma 209472 wheel bearing repair and replacement on Kubota PO14BFX,06/08/2021,0159451,507.75,Revenue,Gibsons Garden Machinery Ltd,17550,,
Chorley Borough Council,http://statistics.data.gov.uk/id/local-authority/30UE,Service Management & Support,1009,Customer & Digital,Hire Of Vehicles and Plant,30028,Contrct Hire & Operating Lease,5018,3 Year Contract hire 1x Schmidt Swingo 200+ as per ITT including servicing and Maintenance,25/08/2021,0159209,"2,019.85",Revenue,Go Plant Fleet Services Ltd,80857,,
Chorley Borough Council,http://statistics.data.gov.uk/id/local-authority/30UE,Service Management & Support,1009,Customer & Digital,Hire Of Vehicles and Plant,30028,Contrct Hire & Operating Lease,5018,3 Year Contract hire 1x Johnston CN101 as per ITT including servicing and Maintenance,25/08/2021,0159250,"1,762.23",Revenue,Go Plant Fleet Services Ltd,80857,,
Chorley Borough Council,http://statistics.data.gov.uk/id/local-authority/30UE,Service Management & Support,1009,Customer & Digital,Hire Of Vehicles and Plant,30028,Contrct Hire & Operating Lease,5018,3 Year Contract hire 1x Schmidt Swingo 200+ as per ITT including servicing and Maintenance,25/08/2021,0159389,"2,019.85",Revenue,Go Plant Fleet Services Ltd,80857,,
Chorley Borough Council,http://statistics.data.gov.uk/id/local-authority/30UE,Service Management & Support,1009,Customer & Digital,Hire Of Vehicles and Plant,30028,Contrct Hire & Operating Lease,5018,3 Year Contract Hire Chassis mounted sweeper as per ITT. Including servicing and Maintenance. to be paid monthly in arrears,25/08/2021,0159390,"2,772.31",Revenue,Go Plant Fleet Services Ltd,80857,,
Chorley Borough Council,http://statistics.data.gov.uk/id/local-authority/30UE,Economic Development,1096,Commercial & Property,Professional Fees,40063,Services,5027,"Covered Market Refurbishment & Upgrade Works, progress & complete delivery of the covered market improvements",06/08/2021,0159263,149.98,Revenue,Gosling Consulting Limited,78380,,
Chorley Borough Council,http://statistics.data.gov.uk/id/local-authority/30UE,Economic Development,1096,Commercial & Property,Professional Fees,40063,Services,5027,"Development of a detailed works programme including all necessary updates, detailed logistics plans to deliver each element",06/08/2021,0159263,599.94,Revenue,Gosling Consulting Limited,78380,,
Chorley Borough Council,http://statistics.data.gov.uk/id/local-authority/30UE,Economic Development,1096,Commercial & Property,Professional Fees,40063,Services,5027,"Check and respond to RAMS, Project Manage the co-ordination and progress of the works in accordance with the logistics plan",06/08/2021,0159263,"1,799.86",Revenue,Gosling Consulting Limited,78380,,
Chorley Borough Council,http://statistics.data.gov.uk/id/local-authority/30UE,Economic Development,1096,Commercial & Property,Professional Fees,40063,Services,5027,"Design Management, Support the Architect in the submission of a Planning & Building Control application",06/08/2021,0159263,299.98,Revenue,Gosling Consulting Limited,78380,,
Chorley Borough Council,http://statistics.data.gov.uk/id/local-authority/30UE,Central Support Services,1009,Commercial & Property,Professional Fees,40063,Services,5027,"Timesheet - Alker Lane - July 2021, 4.5 days at 325 per day",11/08/2021,0159529,"1,462.50",Revenue,Gosling Consulting Limited,78380,,
Chorley Borough Council,http://statistics.data.gov.uk/id/local-authority/30UE,Capital,Capital,Commercial & Property,Main Contractor,03007,Capital Expenditure,Capital,Timesheet July 2021 - Buzz Bingo / 2.50 days at 325 per day.,11/08/2021,0159530,812.50,Capital,Gosling Consulting Limited,78380,,
Chorley Borough Council,http://statistics.data.gov.uk/id/local-authority/30UE,Central Support Services,1009,Commercial & Property,Professional Fees,40063,Services,5027,Timesheet - Tatton - July 2021 2.25 days at 325 per day,11/08/2021,0159531,731.25,Revenue,Gosling Consulting Limited,78380,,
Chorley Borough Council,http://statistics.data.gov.uk/id/local-authority/30UE,Corporate Management,1008,Commercial & Property,Miscellaneous Expenses,40200,Miscellaneous Expenses,5034,100 packs of 5 visors with glasses attachment at a cost of 5.99 per pack 5. Total 599,06/08/2021,0159494,599.00,Revenue,Grafton Projects Limited,76545,,
Chorley Borough Council,http://statistics.data.gov.uk/id/local-authority/30UE,Corporate Management,1008,Commercial & Property,Publicity - Advertising,40157,Miscellaneous Expenses,5034,Social media for Market Walk Shopping Centre Chorley. July 2021 - March 2022 @500 Per month Total 9 months 4500,11/08/2021,0159388,500.00,Revenue,Gravity,77837,,
Chorley Borough Council,http://statistics.data.gov.uk/id/local-authority/30UE,Corporate Management,1008,Policy & Governance,Miscellaneous Expenses,40200,Miscellaneous Expenses,5034,Hire of 8 hand wash sinks from 1st to 31st July 2021. Contract number: 023959.,06/08/2021,0159353,"1,440.00",Revenue,Hallmark Catering,78575,,
Chorley Borough Council,http://statistics.data.gov.uk/id/local-authority/30UE,Business Support,1095,Commercial & Property,Tools & Equipment - Purchase,40003,"Equipment, Furniture & Materia",5023,CREDIT REC`D,06/08/2021,0158889,271.38,Revenue,Hanson Cleaning Equipment Ltd,17297,,
Chorley Borough Council,http://statistics.data.gov.uk/id/local-authority/30UE,Unapportionable Central OHeads,1009,Policy & Governance,Miscellaneous Expenses,40200,Miscellaneous Expenses,5034,healthcare PSA settlement,06/08/2021,0159424,"8,624.73",Revenue,HM Revenue & Customs,21907,,
Chorley Borough Council,http://statistics.data.gov.uk/id/local-authority/30UE,Community Development,1097,Communities,Core Funding Grants,40133,Grants and Subscriptions,5031,Delivery of Family Support Service - First payment of 50% annual allocation,11/08/2021,0159569,"11,000.00",Revenue,Home-Start Central Lancashire Ltd,20585,,
Chorley Borough Council,http://statistics.data.gov.uk/id/local-authority/30UE,Central Support Services,1009,Customer & Digital,Telephones - Other,40085,Communication and Computing,5028,10 days consultancy,06/08/2021,0158214,"6,500.00",Revenue,Hybrit LLP,77925,,
Chorley Borough Council,http://statistics.data.gov.uk/id/local-authority/30UE,Central Support Services,1009,Customer & Digital,Telephones - Other,40085,Communication and Computing,5028,1 Yealink T58A Teams Edition 5 147.66 738.30 2 Delivery 1 15.00 15.00,06/08/2021,0158216,753.30,Revenue,Hybrit LLP,77925,,
Chorley Borough Council,http://statistics.data.gov.uk/id/local-authority/30UE,Central Support Services,1009,Customer & Digital,Telephones - Other,40085,Communication and Computing,5028,Hybrit SIP charges July 21,18/08/2021,0159406,585.00,Revenue,Hybrit LLP,77925,,
Chorley Borough Council,http://statistics.data.gov.uk/id/local-authority/30UE,Central Support Services,1009,Customer & Digital,Telephones - Other,40085,Communication and Computing,5028,Hybrit SIP charges May 21,11/08/2021,0159633,585.00,Revenue,Hybrit LLP,77925,,
Chorley Borough Council,http://statistics.data.gov.uk/id/local-authority/30UE,Central Support Services,1009,Customer & Digital,Telephones - Other,40085,Communication and Computing,5028,Hybrit SIP charges June 21,13/08/2021,0159635,585.00,Revenue,Hybrit LLP,77925,,
Chorley Borough Council,http://statistics.data.gov.uk/id/local-authority/30UE,Central Support Services,1009,Customer & Digital,Telephones - Other,40085,Communication and Computing,5028,Hybrit SIP charges April 21,11/08/2021,0159636,585.00,Revenue,Hybrit LLP,77925,,
Chorley Borough Council,http://statistics.data.gov.uk/id/local-authority/30UE,Corporate Management,1008,Policy & Governance,Other Fees,40212,Miscellaneous Expenses,5034,Subsidy for the provision of a meals on wheels service in Chorley from 21/06 to 18/07,18/08/2021,0159044,"2,127.57",Revenue,I Care GB Ltd,77247,,
Chorley Borough Council,http://statistics.data.gov.uk/id/local-authority/30UE,Central Support Services,1009,Customer & Digital,IT Software - Annual Licences,40101,Communication and Computing,5028,"Software licences, support and maintenance; Uniform",25/08/2021,0159405,"11,351.25",Revenue,IDOX Software Limited,17542,,
Chorley Borough Council,http://statistics.data.gov.uk/id/local-authority/30UE,Capital,Capital,Commercial & Property,Main Contractor,03007,Capital Expenditure,Capital,"Removal of the ceiling in the main auditoria to the former Buzz Bingo building, removal of all licensed/notifiable asbestos material",06/08/2021,0159379,"87,373.50",Capital,Inglenorth (Contracting) Limited,81123,,
Chorley Borough Council,http://statistics.data.gov.uk/id/local-authority/30UE,Capital,Capital,Commercial & Property,Main Contractor,03007,Capital Expenditure,Capital,"Removal of the ceiling in the main auditoria to the former Buzz Bingo building, removal of all licensed/notifiable asbestos material",06/08/2021,0159380,"2,400.00",Capital,Inglenorth (Contracting) Limited,81123,,
Chorley Borough Council,http://statistics.data.gov.uk/id/local-authority/30UE,Capital,Capital,Commercial & Property,Main Contractor,03007,Capital Expenditure,Capital,"Removal of the ceiling in the main auditoria to the former Buzz Bingo building, removal of all licensed/notifiable asbestos material",06/08/2021,0159381,"81,798.30",Capital,Inglenorth (Contracting) Limited,81123,,
Chorley Borough Council,http://statistics.data.gov.uk/id/local-authority/30UE,Control Accounts,Control,System,Manual Control Account,00001,Balance Sheet,Balance,,11/08/2021,0159182,527.26,Revenue,Inland Revenue,17445,,
Chorley Borough Council,http://statistics.data.gov.uk/id/local-authority/30UE,Democratic Represent and  Mgnt,1007,Communities,Miscellaneous Expenses,40200,Miscellaneous Expenses,5034,"Delphin Swim Aids-Adult x 13, Mesh storage bag (large), Ladybird raft, Penguin raft, Emoji Smile Raft, Soft touch play ballsx6",06/08/2021,0159377,344.52,Revenue,J P Lennard Limited,80934,,
Chorley Borough Council,http://statistics.data.gov.uk/id/local-authority/30UE,Democratic Represent and  Mgnt,1007,Communities,Miscellaneous Expenses,40200,Miscellaneous Expenses,5034,"Penguin Raft x2, Ladybird Raft, JPL Square Raft, Glossy Beach Ball (610mm) x8, Inflatable Jumbo Ball x4, Emoji Smile Raft",06/08/2021,0159378,448.97,Revenue,J P Lennard Limited,80934,,
Chorley Borough Council,http://statistics.data.gov.uk/id/local-authority/30UE,Business Support,1095,Commercial & Property,Tools & Equipment - Purchase,40003,"Equipment, Furniture & Materia",5023,Washing machine and tumble dryer servicing for 12 months,25/08/2021,0159710,317.22,Revenue,JLA Total Care LTD,78420,,
Chorley Borough Council,http://statistics.data.gov.uk/id/local-authority/30UE,Business Support,1095,Commercial & Property,Tools & Equipment - Purchase,40003,"Equipment, Furniture & Materia",5023,Washing machine and tumble dryer servicing for 12 months,25/08/2021,0159730,317.22,Revenue,JLA Total Care LTD,78420,,
Chorley Borough Council,http://statistics.data.gov.uk/id/local-authority/30UE,Business Support,1095,Commercial & Property,Tools & Equipment - Purchase,40003,"Equipment, Furniture & Materia",5023,Washing machine and tumble dryer servicing for 12 months,25/08/2021,0159731,317.22,Revenue,JLA Total Care LTD,78420,,
Chorley Borough Council,http://statistics.data.gov.uk/id/local-authority/30UE,Business Support,1095,Commercial & Property,Tools & Equipment - Purchase,40003,"Equipment, Furniture & Materia",5023,Washing machine and tumble dryer servicing for 12 months,25/08/2021,0159732,317.22,Revenue,JLA Total Care LTD,78420,,
Chorley Borough Council,http://statistics.data.gov.uk/id/local-authority/30UE,Service Management & Support,1009,Customer & Digital,Supplies-Grounds Maintenance,40025,"Equipment, Furniture & Materia",5023,10 @ 3.6m x 100mm x 100mm green timber,25/08/2021,0158581,72.00,Revenue,John H Mayor & Sons Ltd,16635,,
Chorley Borough Council,http://statistics.data.gov.uk/id/local-authority/30UE,Service Management & Support,1009,Customer & Digital,Supplies-Grounds Maintenance,40025,"Equipment, Furniture & Materia",5023,10 @ 3.6m x 75mm x 75mm green timber,25/08/2021,0158581,110.00,Revenue,John H Mayor & Sons Ltd,16635,,
Chorley Borough Council,http://statistics.data.gov.uk/id/local-authority/30UE,Service Management & Support,1009,Customer & Digital,Supplies-Grounds Maintenance,40025,"Equipment, Furniture & Materia",5023,10 @ 3.6m x 150mm x 50mm green timber,25/08/2021,0158581,148.00,Revenue,John H Mayor & Sons Ltd,16635,,
Chorley Borough Council,http://statistics.data.gov.uk/id/local-authority/30UE,Service Management & Support,1009,Customer & Digital,Supplies-Grounds Maintenance,40025,"Equipment, Furniture & Materia",5023,50 of 100mm knee rail straps,25/08/2021,0158581,53.00,Revenue,John H Mayor & Sons Ltd,16635,,
Chorley Borough Council,http://statistics.data.gov.uk/id/local-authority/30UE,Tourism,1039,Customer & Digital,Supplies-Grounds Maintenance,40025,"Equipment, Furniture & Materia",5023,Supply 60 wooden sleepers. Deliver to Bengal St,25/08/2021,0159857,"1,497.60",Revenue,John H Mayor & Sons Ltd,16635,,
Chorley Borough Council,http://statistics.data.gov.uk/id/local-authority/30UE,Service Management & Support,1009,Customer & Digital,Supplies-Grounds Maintenance,40025,"Equipment, Furniture & Materia",5023,10 @ 4.2m x 200mm x 50mm treated timber,25/08/2021,0159860,210.00,Revenue,John H Mayor & Sons Ltd,16635,,
Chorley Borough Council,http://statistics.data.gov.uk/id/local-authority/30UE,Service Management & Support,1009,Customer & Digital,Supplies-Grounds Maintenance,40025,"Equipment, Furniture & Materia",5023,20 @ 4.2m x 75mm x 75mm treated timber,25/08/2021,0159860,236.00,Revenue,John H Mayor & Sons Ltd,16635,,
Chorley Borough Council,http://statistics.data.gov.uk/id/local-authority/30UE,Central Support Services,1009,Commercial & Property,Main Contractor,03007,Capital Expenditure,Capital,Alker Lane Design & Build Contract,06/08/2021,0159375,"258,407.07",Revenue,John Turner Construction Group Limited,82376,,
Chorley Borough Council,http://statistics.data.gov.uk/id/local-authority/30UE,Tourism,1039,Policy & Governance,Professional Fees,40063,Services,5027,"3 days of the Chorley Flower Show, fees, flowers and materials used in demos, evening meals at the hotel, travelling expenses",11/08/2021,0159570,"2,530.00",Revenue,Jonathan Moseley,78153,,
Chorley Borough Council,http://statistics.data.gov.uk/id/local-authority/30UE,Development Control,1091,Customer & Digital,Statutory Notices,40160,Miscellaneous Expenses,5034,Planning Public Notices to appear in the Chorley Guardian April 2021 to March 2022,18/08/2021,0159571,"1,379.04",Revenue,JPI Media - Johnston Publishing Ltd,20072,,
Chorley Borough Council,http://statistics.data.gov.uk/id/local-authority/30UE,Unapportionable Central OHeads,1009,Policy & Governance,Exhibitions & Special Events,40158,Miscellaneous Expenses,5034,Filming and editing,25/08/2021,0159872,840.00,Revenue,NAME REDACTED,82308,,
Chorley Borough Council,http://statistics.data.gov.uk/id/local-authority/30UE,Unapportionable Central OHeads,1009,Commercial & Property,Planned Maintenance,20006,Repairs Maintenance & Alts,5005,"5 year electrical test, Bengal St",06/08/2021,0159368,"1,520.08",Revenue,KDE Limited,78418,,
Chorley Borough Council,http://statistics.data.gov.uk/id/local-authority/30UE,Unapportionable Central OHeads,1009,Commercial & Property,Planned Maintenance,20006,Repairs Maintenance & Alts,5005,"5 year electrical test, Union St",06/08/2021,0159369,"3,911.20",Revenue,KDE Limited,78418,,
Chorley Borough Council,http://statistics.data.gov.uk/id/local-authority/30UE,Unapportionable Central OHeads,1009,Commercial & Property,Planned Maintenance,20006,Repairs Maintenance & Alts,5005,"5 year electrical test, Chorley Market",06/08/2021,0159370,992.30,Revenue,KDE Limited,78418,,
Chorley Borough Council,http://statistics.data.gov.uk/id/local-authority/30UE,Unapportionable Central OHeads,1009,Commercial & Property,Planned Maintenance,20006,Repairs Maintenance & Alts,5005,"5 year electrical test, Commercial properties, 17-23 Gillibrand St, 45 Clifford St, 57-59 Market St, White Hart, Pets corner",18/08/2021,0159371,"1,221.19",Revenue,KDE Limited,78418,,
Chorley Borough Council,http://statistics.data.gov.uk/id/local-authority/30UE,Community Development,1097,Commercial & Property,Planned Maintenance,20006,Repairs Maintenance & Alts,5005,"5 year electrical test, 35-39 Market St",06/08/2021,0159372,623.41,Revenue,KDE Limited,78418,,
Chorley Borough Council,http://statistics.data.gov.uk/id/local-authority/30UE,Business Support,1095,Commercial & Property,Uniforms,40039,"Clothing, Uniforms and Laundry",5025,"5 x Ambassador II Jackets (Yellow)(2 x L, 1 x M & 2 x XS), 5 logo L/B (Chorley Council), 5 logo R/B (M), 10 Logo Surcharge",25/08/2021,0159869,709.20,Revenue,Keltic Clothing,21988,,
Chorley Borough Council,http://statistics.data.gov.uk/id/local-authority/30UE,Service Management & Support,1009,Customer & Digital,Protective Clothing,40040,"Clothing, Uniforms and Laundry",5025,"Quantity x 15 boxes, Xtra Large Nitrile gloves @ 22.10 per box",11/08/2021,0159534,331.50,Revenue,Key Engineering & Hygene Supplies,51615,,
Chorley Borough Council,http://statistics.data.gov.uk/id/local-authority/30UE,Central Support Services,1009,Customer & Digital,Computer Equipment-Maintenance,40105,Communication and Computing,5028,"MAGICARD, Pronto Plastic Card Printer (Single-Sided), Colour Ribbon (100 Prints), Colour Ribbon (300 Prints), Printer Cleaning",11/08/2021,0158134,620.17,Revenue,Kingsfield Computer Products LTD,77551,,
Chorley Borough Council,http://statistics.data.gov.uk/id/local-authority/30UE,Control Accounts,Control,Policy & Governance,General Balances,00100,Balance Sheet,Balance,Monthly Deductions from Expenses,25/08/2021,0160039,966.58,Revenue,Labour Councillors Association,17577,,
Chorley Borough Council,http://statistics.data.gov.uk/id/local-authority/30UE,Democratic Represent and  Mgnt,1007,Policy & Governance,Tools & Equipment - Purchase,40003,"Equipment, Furniture & Materia",5023,purchase planting for Astley Hall flower beds. Also delivery of the above to Bengal Street depot.,25/08/2021,0159961,"4,673.96",Revenue,Ladybrook Nursery,83333,,
Chorley Borough Council,http://statistics.data.gov.uk/id/local-authority/30UE,Unapportionable Central OHeads,1009,Communities,General Repairs - Reactive,20004,Repairs Maintenance & Alts,5005,office clearance at 17-23 Gillibrand st,06/08/2021,0159364,400.00,Revenue,Lancashire Clearance Services Ltd,79462,,
Chorley Borough Council,http://statistics.data.gov.uk/id/local-authority/30UE,Capital,Capital,Communities,Grants,03002,Capital Expenditure,Capital,ADDRESS REDACTED,06/08/2021,0159366,"2,467.89",Capital,Lancashire County Council,17758,,
Chorley Borough Council,http://statistics.data.gov.uk/id/local-authority/30UE,Central Support Services,1009,Commercial & Property,Miscellaneous Expenses,40200,Miscellaneous Expenses,5034,Disconnection of street signs to facilitate the Tatton development - Chorley Council,11/08/2021,0159575,884.66,Revenue,Lancashire County Council Highways,18845,,
Chorley Borough Council,http://statistics.data.gov.uk/id/local-authority/30UE,Capital,Capital,Commercial & Property,Other Expenses,03030,Capital Expenditure,Capital,S278 Agreement - Euxton Lane Chorley,25/08/2021,0159928,"1,375.00",Capital,Lancashire County Council Highways,18845,,
Chorley Borough Council,http://statistics.data.gov.uk/id/local-authority/30UE,Democratic Represent and  Mgnt,1007,Commercial & Property,General Repairs - Reactive,20004,Repairs Maintenance & Alts,5005,"BB inv019158, Follow up to loss of heating. Supply and install a replacement standby pump TF13060",06/08/2021,0159384,"1,244.55",Revenue,Lancashire Gas Services Ltd,78192,,
Chorley Borough Council,http://statistics.data.gov.uk/id/local-authority/30UE,Democratic Represent and  Mgnt,1007,Commercial & Property,General Repairs - Reactive,20004,Repairs Maintenance & Alts,5005,"CGLC inv 018980, replace 6 thermostatic rad valves TF12943",06/08/2021,0159395,668.45,Revenue,Lancashire Gas Services Ltd,78192,,
Chorley Borough Council,http://statistics.data.gov.uk/id/local-authority/30UE,Democratic Represent and  Mgnt,1007,Commercial & Property,General Repairs - Reactive,20004,Repairs Maintenance & Alts,5005,"CGLC inv 018912, constant flush on left urinal TF12847",06/08/2021,0159396,342.65,Revenue,Lancashire Gas Services Ltd,78192,,
Chorley Borough Council,http://statistics.data.gov.uk/id/local-authority/30UE,Democratic Represent and  Mgnt,1007,Commercial & Property,General Repairs - Reactive,20004,Repairs Maintenance & Alts,5005,"ASLC inv018970, leak cold water storage tank 1 TF12893",06/08/2021,0159399,"1,877.95",Revenue,Lancashire Gas Services Ltd,78192,,
Chorley Borough Council,http://statistics.data.gov.uk/id/local-authority/30UE,Unapportionable Central OHeads,1009,Commercial & Property,Planned Maintenance,20006,Repairs Maintenance & Alts,5005,"Astley Hall, supply and install 2x Andrews water filter, 2x ignition probe, 2x ignition lead, 1x front panel button",06/08/2021,0159402,257.19,Revenue,Lancashire Gas Services Ltd,78192,,
Chorley Borough Council,http://statistics.data.gov.uk/id/local-authority/30UE,Unapportionable Central OHeads,1009,Commercial & Property,Planned Maintenance,20006,Repairs Maintenance & Alts,5005,"Zurich works, lower right nut and bolt to rear plate missing, replaced and other added to secure back casing",06/08/2021,0159403,466.35,Revenue,Lancashire Gas Services Ltd,78192,,
Chorley Borough Council,http://statistics.data.gov.uk/id/local-authority/30UE,Unapportionable Central OHeads,1009,Communities,Exhibitions & Special Events,40158,Miscellaneous Expenses,5034,Works at Astley Park in accordance with quote dated 11/06/2021,13/08/2021,0159523,"4,940.00",Revenue,Landscape Engineering Ltd,54727,,
Chorley Borough Council,http://statistics.data.gov.uk/id/local-authority/30UE,Democratic Represent and  Mgnt,1007,Policy & Governance,Professional Fees,40063,Services,5027,VAT Leisure contract and Leisure Review,25/08/2021,0159925,"2,340.00",Revenue,LAVAT Consulting Ltd,76942,,
Chorley Borough Council,http://statistics.data.gov.uk/id/local-authority/30UE,Central Support Services,1009,Commercial & Property,Consultants` Fees,40077,Services,5027,Valuation of 14 assets identified as red or amber on the 2020-21 asset valuation desktop review,18/08/2021,0159816,"2,660.00",Revenue,Lea Hough & Co LLP,76318,,
Chorley Borough Council,http://statistics.data.gov.uk/id/local-authority/30UE,Unapportionable Central OHeads,1009,Customer & Digital,Professional Fees,14011,Direct Employee Expenses,5001,Empty Homes Review 2021,18/08/2021,0158827,"2,425.21",Revenue,Liberata (Capacity Grid),67989,,
Chorley Borough Council,http://statistics.data.gov.uk/id/local-authority/30UE,Democratic Represent and  Mgnt,1007,Chief Executive,General Subscriptions,40146,Grants and Subscriptions,5031,Annual Subscription 2021/22,06/08/2021,0159509,"11,158.29",Revenue,Local Government Association,16243,,
Chorley Borough Council,http://statistics.data.gov.uk/id/local-authority/30UE,Unapportionable Central OHeads,1009,Policy & Governance,Exhibitions & Special Events,40158,Miscellaneous Expenses,5034,Appearance at Picnic in the Park.,25/08/2021,0159873,525.00,Revenue,Louby Lou Ltd,76335,,
Chorley Borough Council,http://statistics.data.gov.uk/id/local-authority/30UE,Democratic Represent and  Mgnt,1007,Communities,Miscellaneous Expenses,40200,Miscellaneous Expenses,5034,July 2021 - March 2022 Group Ex Classes,11/08/2021,0159611,297.00,Revenue,Louise Kenny,81105,,
Chorley Borough Council,http://statistics.data.gov.uk/id/local-authority/30UE,Democratic Represent and  Mgnt,1007,Communities,Other Materials,40032,"Equipment, Furniture & Materia",5023,"Silicone Cap Multi Colour, Blue/Silver x 6, Pink/Silver x 6, Trainer Seat (0-12 mths) Orange/Green x 4",13/08/2021,0158924,341.92,Revenue,Mares S.p.A,82058,,
Chorley Borough Council,http://statistics.data.gov.uk/id/local-authority/30UE,Democratic Represent and  Mgnt,1007,Communities,Miscellaneous Expenses,40200,Miscellaneous Expenses,5034,"Phantom 2.0 Black/Red/Smoke, Endura Clear/Blue/Clear, Bondi Black/Lime/Smoke, Otter Black/Lime/Smoke",13/08/2021,0159192,445.56,Revenue,Mares S.p.A,82058,,
Chorley Borough Council,http://statistics.data.gov.uk/id/local-authority/30UE,Democratic Represent and  Mgnt,1007,Communities,Miscellaneous Expenses,40200,Miscellaneous Expenses,5034,huggies little swimmers,13/08/2021,0159192,23.76,Revenue,Mares S.p.A,82058,,
Chorley Borough Council,http://statistics.data.gov.uk/id/local-authority/30UE,Tourism,1039,Policy & Governance,External Contractor,40198,Miscellaneous Expenses,5034,"Gardening theatre costs for 3 days of the Chorley Flower Show. All fees, hire of stage unit, PA equipment, props and materials",18/08/2021,0159608,"3,975.00",Revenue,Martin Fish Ltd,76761,,
Chorley Borough Council,http://statistics.data.gov.uk/id/local-authority/30UE,Corporate Management,1008,Policy & Governance,Agency Staff,13000,Direct Employee Expenses,5001,no attached report rec`d,25/08/2021,0159432,"1,381.04",Revenue,Matrix SCM Ltd,22128,,
Chorley Borough Council,http://statistics.data.gov.uk/id/local-authority/30UE,Corporate Management,1008,Policy & Governance,Agency Staff,13000,Direct Employee Expenses,5001,NAME REDACTED,25/08/2021,0159433,460.75,Revenue,Matrix SCM Ltd,22128,,
Chorley Borough Council,http://statistics.data.gov.uk/id/local-authority/30UE,Corporate Management,1008,Policy & Governance,Agency Staff,13000,Direct Employee Expenses,5001,NAME REDACTED,25/08/2021,0159433,460.75,Revenue,Matrix SCM Ltd,22128,,
Chorley Borough Council,http://statistics.data.gov.uk/id/local-authority/30UE,Corporate Management,1008,Policy & Governance,Agency Staff,13000,Direct Employee Expenses,5001,NAME REDACTED,25/08/2021,0159433,547.96,Revenue,Matrix SCM Ltd,22128,,
Chorley Borough Council,http://statistics.data.gov.uk/id/local-authority/30UE,Corporate Management,1008,Policy & Governance,Agency Staff,13000,Direct Employee Expenses,5001,NAME REDACTED,25/08/2021,0159433,376.00,Revenue,Matrix SCM Ltd,22128,,
Chorley Borough Council,http://statistics.data.gov.uk/id/local-authority/30UE,Corporate Management,1008,Policy & Governance,Agency Staff,13000,Direct Employee Expenses,5001,no backup sheet,18/08/2021,0159671,"1,381.04",Revenue,Matrix SCM Ltd,22128,,
Chorley Borough Council,http://statistics.data.gov.uk/id/local-authority/30UE,Unapportionable Central OHeads,1009,Commercial & Property,Planned Maintenance,20006,Repairs Maintenance & Alts,5005,"Legionella monitoring, Astley Hall, Coach House and Farmhouse",18/08/2021,0159260,75.00,Revenue,Maxigiene Environmental Services Ltd,67160,,
Chorley Borough Council,http://statistics.data.gov.uk/id/local-authority/30UE,Unapportionable Central OHeads,1009,Commercial & Property,Planned Maintenance,20006,Repairs Maintenance & Alts,5005,"Legionella monitoring, Parks Buildings -  Devonshire rec, harpers rec",18/08/2021,0159260,40.00,Revenue,Maxigiene Environmental Services Ltd,67160,,
Chorley Borough Council,http://statistics.data.gov.uk/id/local-authority/30UE,Unapportionable Central OHeads,1009,Commercial & Property,Planned Maintenance,20006,Repairs Maintenance & Alts,5005,"Legionella monitoring, Community centres",18/08/2021,0159260,169.16,Revenue,Maxigiene Environmental Services Ltd,67160,,
Chorley Borough Council,http://statistics.data.gov.uk/id/local-authority/30UE,Unapportionable Central OHeads,1009,Commercial & Property,Planned Maintenance,20006,Repairs Maintenance & Alts,5005,"Legionella monitoring, WC`s including cemetery wc",18/08/2021,0159260,65.00,Revenue,Maxigiene Environmental Services Ltd,67160,,
Chorley Borough Council,http://statistics.data.gov.uk/id/local-authority/30UE,Unapportionable Central OHeads,1009,Commercial & Property,Planned Maintenance,20006,Repairs Maintenance & Alts,5005,"Legionella monitoring, sports pitches/pavilions",18/08/2021,0159260,72.08,Revenue,Maxigiene Environmental Services Ltd,67160,,
Chorley Borough Council,http://statistics.data.gov.uk/id/local-authority/30UE,Unapportionable Central OHeads,1009,Commercial & Property,Planned Maintenance,20006,Repairs Maintenance & Alts,5005,"Legionella monitoring, Bengal St",18/08/2021,0159260,25.00,Revenue,Maxigiene Environmental Services Ltd,67160,,
Chorley Borough Council,http://statistics.data.gov.uk/id/local-authority/30UE,Unapportionable Central OHeads,1009,Commercial & Property,Planned Maintenance,20006,Repairs Maintenance & Alts,5005,"Legionella monitoring, chorley cem",18/08/2021,0159260,20.00,Revenue,Maxigiene Environmental Services Ltd,67160,,
Chorley Borough Council,http://statistics.data.gov.uk/id/local-authority/30UE,Community Development,1097,Commercial & Property,Planned Maintenance,20006,Repairs Maintenance & Alts,5005,"Legionella monitoring, CAB (CIC)",18/08/2021,0159260,20.00,Revenue,Maxigiene Environmental Services Ltd,67160,,
Chorley Borough Council,http://statistics.data.gov.uk/id/local-authority/30UE,Business Support,1095,Commercial & Property,Planned Maintenance,20006,Repairs Maintenance & Alts,5005,"Legionella monitoring, MW Mgt",18/08/2021,0159260,20.00,Revenue,Maxigiene Environmental Services Ltd,67160,,
Chorley Borough Council,http://statistics.data.gov.uk/id/local-authority/30UE,Unapportionable Central OHeads,1009,Commercial & Property,Planned Maintenance,20006,Repairs Maintenance & Alts,5005,"Legionella monitoring, Cotswold House",18/08/2021,0159260,20.00,Revenue,Maxigiene Environmental Services Ltd,67160,,
Chorley Borough Council,http://statistics.data.gov.uk/id/local-authority/30UE,Unapportionable Central OHeads,1009,Commercial & Property,Planned Maintenance,20006,Repairs Maintenance & Alts,5005,"Legionella monitoring, Market",18/08/2021,0159260,20.00,Revenue,Maxigiene Environmental Services Ltd,67160,,
Chorley Borough Council,http://statistics.data.gov.uk/id/local-authority/30UE,Unapportionable Central OHeads,1009,Commercial & Property,Planned Maintenance,20006,Repairs Maintenance & Alts,5005,"Legionella monitoring, Primrose",18/08/2021,0159260,30.00,Revenue,Maxigiene Environmental Services Ltd,67160,,
Chorley Borough Council,http://statistics.data.gov.uk/id/local-authority/30UE,Business Support,1095,Commercial & Property,Planned Maintenance,20006,Repairs Maintenance & Alts,5005,"Legionella monitoring, DOP",18/08/2021,0159260,30.00,Revenue,Maxigiene Environmental Services Ltd,67160,,
Chorley Borough Council,http://statistics.data.gov.uk/id/local-authority/30UE,Unapportionable Central OHeads,1009,Commercial & Property,Planned Maintenance,20006,Repairs Maintenance & Alts,5005,"Legionella monitoring, Town Hall",18/08/2021,0159260,25.00,Revenue,Maxigiene Environmental Services Ltd,67160,,
Chorley Borough Council,http://statistics.data.gov.uk/id/local-authority/30UE,Unapportionable Central OHeads,1009,Commercial & Property,Planned Maintenance,20006,Repairs Maintenance & Alts,5005,"Legionella monitoring, Union St",18/08/2021,0159260,25.00,Revenue,Maxigiene Environmental Services Ltd,67160,,
Chorley Borough Council,http://statistics.data.gov.uk/id/local-authority/30UE,Unapportionable Central OHeads,1009,Commercial & Property,Planned Maintenance,20006,Repairs Maintenance & Alts,5005,"Legionella monitoring, Astley Hall, Coach House and Farmhouse",18/08/2021,0159607,75.00,Revenue,Maxigiene Environmental Services Ltd,67160,,
Chorley Borough Council,http://statistics.data.gov.uk/id/local-authority/30UE,Unapportionable Central OHeads,1009,Commercial & Property,Planned Maintenance,20006,Repairs Maintenance & Alts,5005,"Legionella monitoring, Parks Buildings -  Devonshire rec, harpers rec",18/08/2021,0159607,40.00,Revenue,Maxigiene Environmental Services Ltd,67160,,
Chorley Borough Council,http://statistics.data.gov.uk/id/local-authority/30UE,Unapportionable Central OHeads,1009,Commercial & Property,Planned Maintenance,20006,Repairs Maintenance & Alts,5005,"Legionella monitoring, Community centres",18/08/2021,0159607,169.16,Revenue,Maxigiene Environmental Services Ltd,67160,,
Chorley Borough Council,http://statistics.data.gov.uk/id/local-authority/30UE,Unapportionable Central OHeads,1009,Commercial & Property,Planned Maintenance,20006,Repairs Maintenance & Alts,5005,"Legionella monitoring, WC`s including cemetery wc",18/08/2021,0159607,65.00,Revenue,Maxigiene Environmental Services Ltd,67160,,
Chorley Borough Council,http://statistics.data.gov.uk/id/local-authority/30UE,Unapportionable Central OHeads,1009,Commercial & Property,Planned Maintenance,20006,Repairs Maintenance & Alts,5005,"Legionella monitoring, sports pitches/pavilions",18/08/2021,0159607,72.08,Revenue,Maxigiene Environmental Services Ltd,67160,,
Chorley Borough Council,http://statistics.data.gov.uk/id/local-authority/30UE,Unapportionable Central OHeads,1009,Commercial & Property,Planned Maintenance,20006,Repairs Maintenance & Alts,5005,"Legionella monitoring, Bengal St",18/08/2021,0159607,25.00,Revenue,Maxigiene Environmental Services Ltd,67160,,
Chorley Borough Council,http://statistics.data.gov.uk/id/local-authority/30UE,Unapportionable Central OHeads,1009,Commercial & Property,Planned Maintenance,20006,Repairs Maintenance & Alts,5005,"Legionella monitoring, chorley cem",18/08/2021,0159607,20.00,Revenue,Maxigiene Environmental Services Ltd,67160,,
Chorley Borough Council,http://statistics.data.gov.uk/id/local-authority/30UE,Community Development,1097,Commercial & Property,Planned Maintenance,20006,Repairs Maintenance & Alts,5005,"Legionella monitoring, CAB (CIC)",18/08/2021,0159607,20.00,Revenue,Maxigiene Environmental Services Ltd,67160,,
Chorley Borough Council,http://statistics.data.gov.uk/id/local-authority/30UE,Business Support,1095,Commercial & Property,Planned Maintenance,20006,Repairs Maintenance & Alts,5005,"Legionella monitoring, MW Mgt",18/08/2021,0159607,20.00,Revenue,Maxigiene Environmental Services Ltd,67160,,
Chorley Borough Council,http://statistics.data.gov.uk/id/local-authority/30UE,Unapportionable Central OHeads,1009,Commercial & Property,Planned Maintenance,20006,Repairs Maintenance & Alts,5005,"Legionella monitoring, Cotswold House",18/08/2021,0159607,20.00,Revenue,Maxigiene Environmental Services Ltd,67160,,
Chorley Borough Council,http://statistics.data.gov.uk/id/local-authority/30UE,Central Support Services,1009,Commercial & Property,Planned Maintenance,20006,Repairs Maintenance & Alts,5005,"Legionella monitoring, Market",18/08/2021,0159607,20.00,Revenue,Maxigiene Environmental Services Ltd,67160,,
Chorley Borough Council,http://statistics.data.gov.uk/id/local-authority/30UE,Unapportionable Central OHeads,1009,Commercial & Property,Planned Maintenance,20006,Repairs Maintenance & Alts,5005,"Legionella monitoring, Primrose",18/08/2021,0159607,30.00,Revenue,Maxigiene Environmental Services Ltd,67160,,
Chorley Borough Council,http://statistics.data.gov.uk/id/local-authority/30UE,Business Support,1095,Commercial & Property,Planned Maintenance,20006,Repairs Maintenance & Alts,5005,"Legionella monitoring, DOP",18/08/2021,0159607,30.00,Revenue,Maxigiene Environmental Services Ltd,67160,,
Chorley Borough Council,http://statistics.data.gov.uk/id/local-authority/30UE,Unapportionable Central OHeads,1009,Commercial & Property,Planned Maintenance,20006,Repairs Maintenance & Alts,5005,"Legionella monitoring, Town Hall",18/08/2021,0159607,25.00,Revenue,Maxigiene Environmental Services Ltd,67160,,
Chorley Borough Council,http://statistics.data.gov.uk/id/local-authority/30UE,Unapportionable Central OHeads,1009,Commercial & Property,Planned Maintenance,20006,Repairs Maintenance & Alts,5005,"Legionella monitoring, Union St",18/08/2021,0159607,25.00,Revenue,Maxigiene Environmental Services Ltd,67160,,
Chorley Borough Council,http://statistics.data.gov.uk/id/local-authority/30UE,Service Management & Support,1009,Customer & Digital,Supplies-Grounds Maintenance,40025,"Equipment, Furniture & Materia",5023,20 tonne of 4mm to dust black,25/08/2021,0158524,392.35,Revenue,Mc & Ma Stewart (Haulage Ltd),16627,,
Chorley Borough Council,http://statistics.data.gov.uk/id/local-authority/30UE,Service Management & Support,1009,Customer & Digital,Supplies-Grounds Maintenance,40025,"Equipment, Furniture & Materia",5023,20 tonne of Mot delivered to Yarrow valley Park,25/08/2021,0159486,358.76,Revenue,Mc & Ma Stewart (Haulage Ltd),16627,,
Chorley Borough Council,http://statistics.data.gov.uk/id/local-authority/30UE,Democratic Represent and  Mgnt,1007,Communities,External Contractor,40198,Miscellaneous Expenses,5034,"Delivery of 20 tonne Black limestone dust to Crosse Hall Allotments, Chorley, PR6 9AW.",18/08/2021,0159487,438.20,Revenue,Mc & Ma Stewart (Haulage Ltd),16627,,
Chorley Borough Council,http://statistics.data.gov.uk/id/local-authority/30UE,Service Management & Support,1009,Customer & Digital,Supplies-Grounds Maintenance,40025,"Equipment, Furniture & Materia",5023,"20 tonne of 20mm to dust of dark limestone delivered to gate near roundabout on the gillibrand link road, opposite Keepers wood.",25/08/2021,0159488,416.22,Revenue,Mc & Ma Stewart (Haulage Ltd),16627,,
Chorley Borough Council,http://statistics.data.gov.uk/id/local-authority/30UE,Service Management & Support,1009,Customer & Digital,Supplies-Grounds Maintenance,40025,"Equipment, Furniture & Materia",5023,Supply 20 ton of grade 1 top soil,06/08/2021,0159489,445.00,Revenue,Mc & Ma Stewart (Haulage Ltd),16627,,
Chorley Borough Council,http://statistics.data.gov.uk/id/local-authority/30UE,Unapportionable Central OHeads,1009,Commercial & Property,General Repairs - Reactive,20004,Repairs Maintenance & Alts,5005,"Market, Clear drain to chicken hut TF13248",06/08/2021,0159359,280.00,Revenue,Michael Roe,78294,,
Chorley Borough Council,http://statistics.data.gov.uk/id/local-authority/30UE,Unapportionable Central OHeads,1009,Commercial & Property,General Repairs - Reactive,20004,Repairs Maintenance & Alts,5005,"Astley Bowling Hut, clear 3 gullys and jet TF13224",06/08/2021,0159360,280.00,Revenue,Michael Roe,78294,,
Chorley Borough Council,http://statistics.data.gov.uk/id/local-authority/30UE,Unapportionable Central OHeads,1009,Commercial & Property,General Repairs - Reactive,20004,Repairs Maintenance & Alts,5005,"King Georges playing field Adlington, Excavate and repair water leak",06/08/2021,0159361,645.00,Revenue,Michael Roe,78294,,
Chorley Borough Council,http://statistics.data.gov.uk/id/local-authority/30UE,Service Management & Support,1009,Customer & Digital,Supplies-Grounds Maintenance,40025,"Equipment, Furniture & Materia",5023,"Supply troughs & hanging baskets for T/C, Adlington & Coppull",13/08/2021,0158168,"8,557.99",Revenue,Midstream (West Lancs) Ltd,20873,,
Chorley Borough Council,http://statistics.data.gov.uk/id/local-authority/30UE,Capital,Capital,Communities,Grants,03002,Capital Expenditure,Capital,ADDRESS REDACTED,25/08/2021,0159946,"4,897.19",Capital,Mint Northwest Ltd,65607,,
Chorley Borough Council,http://statistics.data.gov.uk/id/local-authority/30UE,Capital,Capital,Communities,Grants,03002,Capital Expenditure,Capital,ADDRESS REDACTED,25/08/2021,0159947,442.69,Capital,Mint Northwest Ltd,65607,,
Chorley Borough Council,http://statistics.data.gov.uk/id/local-authority/30UE,Capital,Capital,Communities,Grants,03002,Capital Expenditure,Capital,ADDRESS REDACTED,25/08/2021,0159948,"4,647.76",Capital,Mint Northwest Ltd,65607,,
Chorley Borough Council,http://statistics.data.gov.uk/id/local-authority/30UE,Capital,Capital,Communities,Grants,03002,Capital Expenditure,Capital,ADDRESS REDACTED,25/08/2021,0159949,"6,859.45",Capital,Mint Northwest Ltd,65607,,
Chorley Borough Council,http://statistics.data.gov.uk/id/local-authority/30UE,Capital,Capital,Communities,Grants,03002,Capital Expenditure,Capital,ADDRESS REDACTED,25/08/2021,0159950,"5,172.33",Capital,Mint Northwest Ltd,65607,,
Chorley Borough Council,http://statistics.data.gov.uk/id/local-authority/30UE,Capital,Capital,Communities,Grants,03002,Capital Expenditure,Capital,ADDRESS REDACTED,25/08/2021,0159951,"7,893.71",Capital,Mint Northwest Ltd,65607,,
Chorley Borough Council,http://statistics.data.gov.uk/id/local-authority/30UE,Planning Policy,1092,Commercial & Property,Legal Fees,40171,Miscellaneous Expenses,5034,Barrister fees for Land at South Lodge as per NAME REDACTED instruction,13/08/2021,0159266,300.00,Revenue,Miss Rebecca Cattermole,78532,,
Chorley Borough Council,http://statistics.data.gov.uk/id/local-authority/30UE,Planning Policy,1092,Commercial & Property,Legal Fees,40171,Miscellaneous Expenses,5034,Barrister fees for Land at South Lodge as per NAME REDACTED instruction,13/08/2021,0159357,750.00,Revenue,Miss Rebecca Cattermole,78532,,
Chorley Borough Council,http://statistics.data.gov.uk/id/local-authority/30UE,Private Sector HSG Renewal,1073,Communities,External Contractor,40198,Miscellaneous Expenses,5034,Ref 4835,18/08/2021,0159705,67.00,Revenue,Mobility Care Services,70841,,
Chorley Borough Council,http://statistics.data.gov.uk/id/local-authority/30UE,Private Sector HSG Renewal,1073,Communities,External Contractor,40198,Miscellaneous Expenses,5034,Ref 4836,18/08/2021,0159705,16.75,Revenue,Mobility Care Services,70841,,
Chorley Borough Council,http://statistics.data.gov.uk/id/local-authority/30UE,Private Sector HSG Renewal,1073,Communities,External Contractor,40198,Miscellaneous Expenses,5034,Ref 4837,18/08/2021,0159705,100.50,Revenue,Mobility Care Services,70841,,
Chorley Borough Council,http://statistics.data.gov.uk/id/local-authority/30UE,Private Sector HSG Renewal,1073,Communities,External Contractor,40198,Miscellaneous Expenses,5034,Ref 4838,18/08/2021,0159705,67.00,Revenue,Mobility Care Services,70841,,
Chorley Borough Council,http://statistics.data.gov.uk/id/local-authority/30UE,Private Sector HSG Renewal,1073,Communities,External Contractor,40198,Miscellaneous Expenses,5034,Ref 4843,18/08/2021,0159705,22.55,Revenue,Mobility Care Services,70841,,
Chorley Borough Council,http://statistics.data.gov.uk/id/local-authority/30UE,Private Sector HSG Renewal,1073,Communities,External Contractor,40198,Miscellaneous Expenses,5034,Ref 4844,18/08/2021,0159705,260.00,Revenue,Mobility Care Services,70841,,
Chorley Borough Council,http://statistics.data.gov.uk/id/local-authority/30UE,Private Sector HSG Renewal,1073,Communities,External Contractor,40198,Miscellaneous Expenses,5034,Ref 4845,18/08/2021,0159705,112.75,Revenue,Mobility Care Services,70841,,
Chorley Borough Council,http://statistics.data.gov.uk/id/local-authority/30UE,Private Sector HSG Renewal,1073,Communities,External Contractor,40198,Miscellaneous Expenses,5034,Ref 4859,18/08/2021,0159705,280.00,Revenue,Mobility Care Services,70841,,
Chorley Borough Council,http://statistics.data.gov.uk/id/local-authority/30UE,Private Sector HSG Renewal,1073,Communities,External Contractor,40198,Miscellaneous Expenses,5034,Ref 4860,18/08/2021,0159705,112.75,Revenue,Mobility Care Services,70841,,
Chorley Borough Council,http://statistics.data.gov.uk/id/local-authority/30UE,Private Sector HSG Renewal,1073,Communities,External Contractor,40198,Miscellaneous Expenses,5034,Ref 4861,18/08/2021,0159705,130.00,Revenue,Mobility Care Services,70841,,
Chorley Borough Council,http://statistics.data.gov.uk/id/local-authority/30UE,Private Sector HSG Renewal,1073,Communities,External Contractor,40198,Miscellaneous Expenses,5034,Ref 4864,18/08/2021,0159705,33.50,Revenue,Mobility Care Services,70841,,
Chorley Borough Council,http://statistics.data.gov.uk/id/local-authority/30UE,Private Sector HSG Renewal,1073,Communities,External Contractor,40198,Miscellaneous Expenses,5034,Ref 4870,18/08/2021,0159705,67.00,Revenue,Mobility Care Services,70841,,
Chorley Borough Council,http://statistics.data.gov.uk/id/local-authority/30UE,Private Sector HSG Renewal,1073,Communities,External Contractor,40198,Miscellaneous Expenses,5034,Ref 4871,18/08/2021,0159705,100.50,Revenue,Mobility Care Services,70841,,
Chorley Borough Council,http://statistics.data.gov.uk/id/local-authority/30UE,Private Sector HSG Renewal,1073,Communities,External Contractor,40198,Miscellaneous Expenses,5034,Ref 4903,18/08/2021,0159705,184.25,Revenue,Mobility Care Services,70841,,
Chorley Borough Council,http://statistics.data.gov.uk/id/local-authority/30UE,Private Sector HSG Renewal,1073,Communities,External Contractor,40198,Miscellaneous Expenses,5034,Ref 4904,18/08/2021,0159705,67.00,Revenue,Mobility Care Services,70841,,
Chorley Borough Council,http://statistics.data.gov.uk/id/local-authority/30UE,Private Sector HSG Renewal,1073,Communities,External Contractor,40198,Miscellaneous Expenses,5034,Ref 4905,18/08/2021,0159705,130.00,Revenue,Mobility Care Services,70841,,
Chorley Borough Council,http://statistics.data.gov.uk/id/local-authority/30UE,Private Sector HSG Renewal,1073,Communities,External Contractor,40198,Miscellaneous Expenses,5034,Ref 4906,18/08/2021,0159705,130.00,Revenue,Mobility Care Services,70841,,
Chorley Borough Council,http://statistics.data.gov.uk/id/local-authority/30UE,Private Sector HSG Renewal,1073,Communities,External Contractor,40198,Miscellaneous Expenses,5034,Ref 4907,18/08/2021,0159705,390.00,Revenue,Mobility Care Services,70841,,
Chorley Borough Council,http://statistics.data.gov.uk/id/local-authority/30UE,Private Sector HSG Renewal,1073,Communities,External Contractor,40198,Miscellaneous Expenses,5034,Ref 4908,18/08/2021,0159705,260.00,Revenue,Mobility Care Services,70841,,
Chorley Borough Council,http://statistics.data.gov.uk/id/local-authority/30UE,Private Sector HSG Renewal,1073,Communities,External Contractor,40198,Miscellaneous Expenses,5034,Ref 4913,18/08/2021,0159705,280.00,Revenue,Mobility Care Services,70841,,
Chorley Borough Council,http://statistics.data.gov.uk/id/local-authority/30UE,Private Sector HSG Renewal,1073,Communities,External Contractor,40198,Miscellaneous Expenses,5034,Ref 4914,18/08/2021,0159705,130.00,Revenue,Mobility Care Services,70841,,
Chorley Borough Council,http://statistics.data.gov.uk/id/local-authority/30UE,Private Sector HSG Renewal,1073,Communities,External Contractor,40198,Miscellaneous Expenses,5034,Ref 4915,18/08/2021,0159705,420.00,Revenue,Mobility Care Services,70841,,
Chorley Borough Council,http://statistics.data.gov.uk/id/local-authority/30UE,Private Sector HSG Renewal,1073,Communities,External Contractor,40198,Miscellaneous Expenses,5034,Ref 1916,18/08/2021,0159705,112.75,Revenue,Mobility Care Services,70841,,
Chorley Borough Council,http://statistics.data.gov.uk/id/local-authority/30UE,Private Sector HSG Renewal,1073,Communities,External Contractor,40198,Miscellaneous Expenses,5034,Ref 4917,18/08/2021,0159705,260.00,Revenue,Mobility Care Services,70841,,
Chorley Borough Council,http://statistics.data.gov.uk/id/local-authority/30UE,Private Sector HSG Renewal,1073,Communities,External Contractor,40198,Miscellaneous Expenses,5034,Ref 4944,18/08/2021,0159705,67.00,Revenue,Mobility Care Services,70841,,
Chorley Borough Council,http://statistics.data.gov.uk/id/local-authority/30UE,Private Sector HSG Renewal,1073,Communities,External Contractor,40198,Miscellaneous Expenses,5034,Ref 4945,18/08/2021,0159705,50.25,Revenue,Mobility Care Services,70841,,
Chorley Borough Council,http://statistics.data.gov.uk/id/local-authority/30UE,Private Sector HSG Renewal,1073,Communities,External Contractor,40198,Miscellaneous Expenses,5034,Ref 4946,18/08/2021,0159705,83.75,Revenue,Mobility Care Services,70841,,
Chorley Borough Council,http://statistics.data.gov.uk/id/local-authority/30UE,Private Sector HSG Renewal,1073,Communities,External Contractor,40198,Miscellaneous Expenses,5034,Ref 4954,18/08/2021,0159705,67.00,Revenue,Mobility Care Services,70841,,
Chorley Borough Council,http://statistics.data.gov.uk/id/local-authority/30UE,Private Sector HSG Renewal,1073,Communities,External Contractor,40198,Miscellaneous Expenses,5034,Ref 4955,18/08/2021,0159705,83.75,Revenue,Mobility Care Services,70841,,
Chorley Borough Council,http://statistics.data.gov.uk/id/local-authority/30UE,Private Sector HSG Renewal,1073,Communities,External Contractor,40198,Miscellaneous Expenses,5034,Ref 4956,18/08/2021,0159705,67.00,Revenue,Mobility Care Services,70841,,
Chorley Borough Council,http://statistics.data.gov.uk/id/local-authority/30UE,Control Accounts,Control,Commercial & Property,Manual Control Account,00001,Balance Sheet,Balance,,25/08/2021,0159926,317.12,Revenue,NAME REDACTED,82927,,
Chorley Borough Council,http://statistics.data.gov.uk/id/local-authority/30UE,Control Accounts,Control,Customer & Digital,Manual Control Account,00001,Balance Sheet,Balance,,18/08/2021,0159677,441.56,Revenue,NAME REDACTED,83335,,
Chorley Borough Council,http://statistics.data.gov.uk/id/local-authority/30UE,Tourism,1039,Policy & Governance,Publicity - Advertising,40157,Miscellaneous Expenses,5034,"CHORLEY FLOWER SHOW PROGRAMME 2019, A5. PDF proof. Cover: 4 colour process both sides. Text: 4 colour process",11/08/2021,0159356,"1,361.00",Revenue,N B Colour Print Ltd,17917,,
Chorley Borough Council,http://statistics.data.gov.uk/id/local-authority/30UE,Capital,Capital,Commercial & Property,Other Capital Related Fees,03024,Capital Expenditure,Capital,Security for Westway Sports Hub up to 21st August 2021 (34 days) 9am - 10pm 7 days a week,02/08/2021,0159248,576.00,Capital,New Concept Security NW Ltd T/A New Concept Goup,80488,,
Chorley Borough Council,http://statistics.data.gov.uk/id/local-authority/30UE,Capital,Capital,Commercial & Property,Other Capital Related Fees,03024,Capital Expenditure,Capital,Security for Westway Sports Hub up to 21st August 2021 (34 days) 9am - 10pm 7 days a week,18/08/2021,0159604,"1,092.00",Capital,New Concept Security NW Ltd T/A New Concept Goup,80488,,
Chorley Borough Council,http://statistics.data.gov.uk/id/local-authority/30UE,Business Support,1095,Commercial & Property,Security Service,40062,Services,5027,"Evening Site Security Services at Market Walk Shopping Centre, 5pm - midnight, 7 days a week. 01/04/21 - End March 2022",18/08/2021,0159605,575.75,Revenue,New Concept Security NW Ltd T/A New Concept Goup,80488,,
Chorley Borough Council,http://statistics.data.gov.uk/id/local-authority/30UE,Business Support,1095,Commercial & Property,Security Service,40062,Services,5027,"Evening Site Security Services at Market Walk Shopping Centre, 5pm - midnight, 7 days a week. 01/04/21 - End March 2022",13/08/2021,0159718,575.75,Revenue,New Concept Security NW Ltd T/A New Concept Goup,80488,,
Chorley Borough Council,http://statistics.data.gov.uk/id/local-authority/30UE,Capital,Capital,Commercial & Property,Other Capital Related Fees,03024,Capital Expenditure,Capital,Security for Westway Sports Hub up to 21st August 2021 (34 days) 9am - 10pm 7 days a week,18/08/2021,0159719,"1,596.00",Capital,New Concept Security NW Ltd T/A New Concept Goup,80488,,
Chorley Borough Council,http://statistics.data.gov.uk/id/local-authority/30UE,Capital,Capital,Commercial & Property,Other Capital Related Fees,03024,Capital Expenditure,Capital,Security for Westway Sports Hub up to 21st August 2021 (34 days) 9am - 10pm 7 days a week,25/08/2021,0159881,"2,016.00",Capital,New Concept Security NW Ltd T/A New Concept Goup,80488,,
Chorley Borough Council,http://statistics.data.gov.uk/id/local-authority/30UE,Business Support,1095,Commercial & Property,Security Service,40062,Services,5027,"Evening Site Security Services at Market Walk Shopping Centre, 5pm - midnight, 7 days a week. 01/04/21 - End March 2022",25/08/2021,0159913,552.25,Revenue,New Concept Security NW Ltd T/A New Concept Goup,80488,,
Chorley Borough Council,http://statistics.data.gov.uk/id/local-authority/30UE,Corporate Management,1008,Customer & Digital,"Hackney Badges, Plates Etc.",40023,"Equipment, Furniture & Materia",5023,Private Hire door signs to include tamper evident hologram and cover X 50 @ 6.88 each,13/08/2021,0159703,358.90,Revenue,NewAuto Ltd t/a MOGO UK,17187,,
Chorley Borough Council,http://statistics.data.gov.uk/id/local-authority/30UE,Central Support Services,1009,Commercial & Property,Professional Fees,40063,Services,5027,The Carrington Centre Eccleston - Bloor Homes CIL advice,13/08/2021,0159196,"2,000.00",Revenue,NAME REDACTED,81192,,
Chorley Borough Council,http://statistics.data.gov.uk/id/local-authority/30UE,Business Support,1095,Commercial & Property,Refreshments,40036,Catering,5024,order 29/7/2021,25/08/2021,0159813,339.71,Revenue,North West Tea FM Solutions,78255,,
Chorley Borough Council,http://statistics.data.gov.uk/id/local-authority/30UE,Business Support,1095,Commercial & Property,Refreshments,40036,Catering,5024,vatable,25/08/2021,0159813,6.99,Revenue,North West Tea FM Solutions,78255,,
Chorley Borough Council,http://statistics.data.gov.uk/id/local-authority/30UE,Business Support,1095,Commercial & Property,Refreshments,40036,Catering,5024,"Clipper Fairtrade coffee, T&L sugar 1kg, Dairy Pride longlife milk, Clipper Fairtrade decaf coffee, Clipper Fairtrade teabags",25/08/2021,0159981,490.46,Revenue,North West Tea FM Solutions,78255,,
Chorley Borough Council,http://statistics.data.gov.uk/id/local-authority/30UE,Business Support,1095,Commercial & Property,Refreshments,40036,Catering,5024,vat items,25/08/2021,0159981,6.99,Revenue,North West Tea FM Solutions,78255,,
Chorley Borough Council,http://statistics.data.gov.uk/id/local-authority/30UE,Corporate Management,1008,Customer & Digital,Miscellaneous Expenses,40200,Miscellaneous Expenses,5034,Extension of hired vehicles during covid 19 period.,06/08/2021,0159041,533.08,Revenue,Northgate Vehicle Hire (NW) Ltd,17360,,
Chorley Borough Council,http://statistics.data.gov.uk/id/local-authority/30UE,Corporate Management,1008,Customer & Digital,Miscellaneous Expenses,40200,Miscellaneous Expenses,5034,Extension of hired vehicles during covid 19 period.,13/08/2021,0159697,594.16,Revenue,Northgate Vehicle Hire (NW) Ltd,17360,,
Chorley Borough Council,http://statistics.data.gov.uk/id/local-authority/30UE,Parking Services,1066,Commercial & Property,Electricity,20013,Energy Costs,5006,UN-METERED CAR PARK LIGHTING,06/08/2021,0158927,3.96,Revenue,Npower Commercial Gas,16814,,
Chorley Borough Council,http://statistics.data.gov.uk/id/local-authority/30UE,Parking Services,1066,Commercial & Property,Electricity,20013,Energy Costs,5006,UN-METERED - PAY and DISPLAY MAC,06/08/2021,0158927,401.36,Revenue,Npower Commercial Gas,16814,,
Chorley Borough Council,http://statistics.data.gov.uk/id/local-authority/30UE,Central Support Services,1009,Commercial & Property,Electricity,20013,Energy Costs,5006,UN-METERED CCTV CAMERAS,06/08/2021,0158927,992.87,Revenue,Npower Commercial Gas,16814,,
Chorley Borough Council,http://statistics.data.gov.uk/id/local-authority/30UE,Unapportionable Central OHeads,1009,Commercial & Property,Electricity,20013,Energy Costs,5006,"CIVIC OFFICES, UNION STREET",06/08/2021,0159443,"3,014.55",Revenue,Npower Commercial Gas,16814,,
Chorley Borough Council,http://statistics.data.gov.uk/id/local-authority/30UE,Unapportionable Central OHeads,1009,Commercial & Property,Electricity,20013,Energy Costs,5006,"CIVIC OFFICES, UNION STREET",06/08/2021,0159443,340.50,Revenue,Npower Commercial Gas,16814,,
Chorley Borough Council,http://statistics.data.gov.uk/id/local-authority/30UE,Unapportionable Central OHeads,1009,Commercial & Property,Electricity,20013,Energy Costs,5006,BENGAL STREET DEPOT,06/08/2021,0159443,699.93,Revenue,Npower Commercial Gas,16814,,
Chorley Borough Council,http://statistics.data.gov.uk/id/local-authority/30UE,Unapportionable Central OHeads,1009,Commercial & Property,Electricity,20013,Energy Costs,5006,BENGAL STREET DEPOT,06/08/2021,0159443,86.82,Revenue,Npower Commercial Gas,16814,,
Chorley Borough Council,http://statistics.data.gov.uk/id/local-authority/30UE,Unapportionable Central OHeads,1009,Commercial & Property,Electricity,20013,Energy Costs,5006,TOWN HALL,06/08/2021,0159443,"2,026.76",Revenue,Npower Commercial Gas,16814,,
Chorley Borough Council,http://statistics.data.gov.uk/id/local-authority/30UE,Unapportionable Central OHeads,1009,Commercial & Property,Electricity,20013,Energy Costs,5006,TOWN HALL,06/08/2021,0159443,210.14,Revenue,Npower Commercial Gas,16814,,
Chorley Borough Council,http://statistics.data.gov.uk/id/local-authority/30UE,Democratic Represent and  Mgnt,1007,Commercial & Property,Electricity,20013,Energy Costs,5006,CLAYTON BROOK VILLAGE HALL,06/08/2021,0159443,130.09,Revenue,Npower Commercial Gas,16814,,
Chorley Borough Council,http://statistics.data.gov.uk/id/local-authority/30UE,Democratic Represent and  Mgnt,1007,Commercial & Property,Electricity,20013,Energy Costs,5006,CLAYTON BROOK VILLAGE HALL,06/08/2021,0159443,7.08,Revenue,Npower Commercial Gas,16814,,
Chorley Borough Council,http://statistics.data.gov.uk/id/local-authority/30UE,Business Support,1095,Commercial & Property,Electricity,20013,Energy Costs,5006,"LANDLORD, PRIMROSE GARDENS",06/08/2021,0159443,"1,137.25",Revenue,Npower Commercial Gas,16814,,
Chorley Borough Council,http://statistics.data.gov.uk/id/local-authority/30UE,Business Support,1095,Commercial & Property,Electricity,20013,Energy Costs,5006,"STRAWBERRY FIELDS, DIGITAL HUB",06/08/2021,0159443,"3,522.63",Revenue,Npower Commercial Gas,16814,,
Chorley Borough Council,http://statistics.data.gov.uk/id/local-authority/30UE,Business Support,1095,Commercial & Property,Electricity,20013,Energy Costs,5006,"STRAWBERRY FIELDS, DIGITAL HUB",06/08/2021,0159443,217.35,Revenue,Npower Commercial Gas,16814,,
Chorley Borough Council,http://statistics.data.gov.uk/id/local-authority/30UE,Democratic Represent and  Mgnt,1007,Commercial & Property,Electricity,20013,Energy Costs,5006,ALL SEASONS LEISURE CENTRE,06/08/2021,0159443,"7,320.32",Revenue,Npower Commercial Gas,16814,,
Chorley Borough Council,http://statistics.data.gov.uk/id/local-authority/30UE,Democratic Represent and  Mgnt,1007,Commercial & Property,Electricity,20013,Energy Costs,5006,BRINSCALL BATHS,06/08/2021,0159443,"1,209.89",Revenue,Npower Commercial Gas,16814,,
Chorley Borough Council,http://statistics.data.gov.uk/id/local-authority/30UE,Democratic Represent and  Mgnt,1007,Commercial & Property,Electricity,20013,Energy Costs,5006,CLAYTON GREEN SPORTS CENTRE,06/08/2021,0159443,935.67,Revenue,Npower Commercial Gas,16814,,
Chorley Borough Council,http://statistics.data.gov.uk/id/local-authority/30UE,Parking Services,1066,Commercial & Property,External Contractors,50008,Private Contractors,5042,"Provision of off street car park enforcement, cash collection, cash counting facilities, third party bulk cash collections",06/08/2021,0159450,"5,151.77",Revenue,NSL Limited,67253,,
Chorley Borough Council,http://statistics.data.gov.uk/id/local-authority/30UE,Tourism,1039,Policy & Governance,Miscellaneous Expenses,40200,Miscellaneous Expenses,5034,Owen Jones Oak Swill Basket Making - 3 Days,13/08/2021,0159721,575.00,Revenue,Owen Jones,76956,,
Chorley Borough Council,http://statistics.data.gov.uk/id/local-authority/30UE,Service Management & Support,1009,Customer & Digital,Supplies-Grounds Maintenance,40025,"Equipment, Furniture & Materia",5023,As per invoice Number 20843,11/08/2021,0159510,273.10,Revenue,P D M Components,19204,,
Chorley Borough Council,http://statistics.data.gov.uk/id/local-authority/30UE,Service Management & Support,1009,Customer & Digital,Supplies-Grounds Maintenance,40025,"Equipment, Furniture & Materia",5023,As per invoice number 20825,11/08/2021,0159511,258.70,Revenue,P D M Components,19204,,
Chorley Borough Council,http://statistics.data.gov.uk/id/local-authority/30UE,Parking Services,1066,Commercial & Property,Printing,40043,"Printing, Stationery & General",5026,"Stelio Adhesive, Check out Chorley tickets are 6.95 per 1000. NAME REDACTED",11/08/2021,0159524,"1,396.95",Revenue,Paperwork (UK) Limited,18296,,
Chorley Borough Council,http://statistics.data.gov.uk/id/local-authority/30UE,Planning Policy,1092,Communities,Operational Employees Salaries,10000,Direct Employee Expenses,5001,Temporary Agency Staff (Standard Hours) for work on the Central Lancashire Local Plan,11/08/2021,0159104,"1,529.50",Revenue,Park Avenue Recruitment Ltd,82305,,
Chorley Borough Council,http://statistics.data.gov.uk/id/local-authority/30UE,Planning Policy,1092,Communities,Operational Employees Salaries,10000,Direct Employee Expenses,5001,Temporary Agency Staff (Standard Hours) for work on the Central Lancashire Local Plan,11/08/2021,0159455,"1,667.50",Revenue,Park Avenue Recruitment Ltd,82305,,
Chorley Borough Council,http://statistics.data.gov.uk/id/local-authority/30UE,Planning Policy,1092,Communities,Operational Employees Salaries,10000,Direct Employee Expenses,5001,Temporary Agency Staff (Standard Hours) for work on the Central Lancashire Local Plan,11/08/2021,0159601,"1,667.50",Revenue,Park Avenue Recruitment Ltd,82305,,
Chorley Borough Council,http://statistics.data.gov.uk/id/local-authority/30UE,Planning Policy,1092,Communities,Operational Employees Salaries,10000,Direct Employee Expenses,5001,Temporary Agency Staff (Standard Hours) for work on the Central Lancashire Local Plan,11/08/2021,0159602,"2,857.78",Revenue,Park Avenue Recruitment Ltd,82305,,
Chorley Borough Council,http://statistics.data.gov.uk/id/local-authority/30UE,Business Support,1095,Commercial & Property,Cleaning Materials,40019,"Equipment, Furniture & Materia",5023,6 x AA301 toilet rolls @ 28.12 each,11/08/2021,0159345,168.72,Revenue,Pattersons Holdings (Bristol),77537,,
Chorley Borough Council,http://statistics.data.gov.uk/id/local-authority/30UE,Business Support,1095,Commercial & Property,Cleaning Materials,40019,"Equipment, Furniture & Materia",5023,6 x AE208 hand towels @ 17.80 each,11/08/2021,0159345,106.80,Revenue,Pattersons Holdings (Bristol),77537,,
Chorley Borough Council,http://statistics.data.gov.uk/id/local-authority/30UE,Business Support,1095,Commercial & Property,Cleaning Materials,40019,"Equipment, Furniture & Materia",5023,2 x AF113 case of 6 blue centre feed rolls @ 7.77 each,11/08/2021,0159345,15.54,Revenue,Pattersons Holdings (Bristol),77537,,
Chorley Borough Council,http://statistics.data.gov.uk/id/local-authority/30UE,Business Support,1095,Commercial & Property,Cleaning Materials,40019,"Equipment, Furniture & Materia",5023,6 x BC040-1 perfumed toilet cleaner @ 0.90 each,11/08/2021,0159345,5.40,Revenue,Pattersons Holdings (Bristol),77537,,
Chorley Borough Council,http://statistics.data.gov.uk/id/local-authority/30UE,Business Support,1095,Commercial & Property,Cleaning Materials,40019,"Equipment, Furniture & Materia",5023,6 x BC060-1 acidic toilet cleaner @1.53 each,11/08/2021,0159345,9.18,Revenue,Pattersons Holdings (Bristol),77537,,
Chorley Borough Council,http://statistics.data.gov.uk/id/local-authority/30UE,Business Support,1095,Commercial & Property,Cleaning Materials,40019,"Equipment, Furniture & Materia",5023,4 x HA0016 kentucky mop heads @ 1.18,11/08/2021,0159345,4.72,Revenue,Pattersons Holdings (Bristol),77537,,
Chorley Borough Council,http://statistics.data.gov.uk/id/local-authority/30UE,Business Support,1095,Commercial & Property,Cleaning Materials,40019,"Equipment, Furniture & Materia",5023,"1 x DG150-L nitrile gloves, large",11/08/2021,0159345,9.25,Revenue,Pattersons Holdings (Bristol),77537,,
Chorley Borough Council,http://statistics.data.gov.uk/id/local-authority/30UE,Business Support,1095,Commercial & Property,Cleaning Materials,40019,"Equipment, Furniture & Materia",5023,"1 x HL085, pack of 10 Jangro erase all sponges",11/08/2021,0159345,1.57,Revenue,Pattersons Holdings (Bristol),77537,,
Chorley Borough Council,http://statistics.data.gov.uk/id/local-authority/30UE,Business Support,1095,Commercial & Property,Cleaning Materials,40019,"Equipment, Furniture & Materia",5023,10 x AA301 Toilet Rolls @ 28.12,18/08/2021,0159817,224.96,Revenue,Pattersons Holdings (Bristol),77537,,
Chorley Borough Council,http://statistics.data.gov.uk/id/local-authority/30UE,Business Support,1095,Commercial & Property,Cleaning Materials,40019,"Equipment, Furniture & Materia",5023,10 x AE208 hand towels @ 17.80,18/08/2021,0159817,160.20,Revenue,Pattersons Holdings (Bristol),77537,,
Chorley Borough Council,http://statistics.data.gov.uk/id/local-authority/30UE,Business Support,1095,Commercial & Property,Cleaning Materials,40019,"Equipment, Furniture & Materia",5023,12 x BC060-1 acidic toilet cleaner @ 1.53,18/08/2021,0159817,18.36,Revenue,Pattersons Holdings (Bristol),77537,,
Chorley Borough Council,http://statistics.data.gov.uk/id/local-authority/30UE,Business Support,1095,Commercial & Property,Cleaning Materials,40019,"Equipment, Furniture & Materia",5023,12 x BC040-1 perfumed toilet cleaner @ 0.90,18/08/2021,0159817,10.80,Revenue,Pattersons Holdings (Bristol),77537,,
Chorley Borough Council,http://statistics.data.gov.uk/id/local-authority/30UE,Business Support,1095,Commercial & Property,Cleaning Materials,40019,"Equipment, Furniture & Materia",5023,1 x BB103 dishwasher tabs,18/08/2021,0159817,12.37,Revenue,Pattersons Holdings (Bristol),77537,,
Chorley Borough Council,http://statistics.data.gov.uk/id/local-authority/30UE,Unapportionable Central OHeads,1009,Policy & Governance,Exhibitions & Special Events,40158,Miscellaneous Expenses,5034,Photography at events throughout 2021,11/08/2021,0159579,800.00,Revenue,Paul Heyes Photographer,20909,,
Chorley Borough Council,http://statistics.data.gov.uk/id/local-authority/30UE,Unapportionable Central OHeads,1009,Policy & Governance,Exhibitions & Special Events,40158,Miscellaneous Expenses,5034,Photography at events throughout 2021,25/08/2021,0159804,250.00,Revenue,Paul Heyes Photographer,20909,,
Chorley Borough Council,http://statistics.data.gov.uk/id/local-authority/30UE,Community Development,1097,Commercial & Property,General Repairs - Reactive,20004,Repairs Maintenance & Alts,5005,"35-39 MARKET STREET CAB BUILDING, Take down, remove the damaged gate. Supply, erect Single Leaf Gate, RHS frame",06/08/2021,0159468,"1,285.63",Revenue,Peerless Fencing Limited,78148,,
Chorley Borough Council,http://statistics.data.gov.uk/id/local-authority/30UE,Parking Services,1066,Commercial & Property,Furniture - Purchase,40012,"Equipment, Furniture & Materia",5023,Take down and remove damaged timber fencing. Supply and erect  welded mesh fencing system,06/08/2021,0159469,"2,207.14",Revenue,Peerless Fencing Limited,78148,,
Chorley Borough Council,http://statistics.data.gov.uk/id/local-authority/30UE,Central Support Services,1009,Policy & Governance,HR Approved Occ Health Fees,15201,Indirect Employee Expenses,5002,Occupational Health charges for July 2021,06/08/2021,0159498,346.75,Revenue,People Asset Management Limited,76487,,
Chorley Borough Council,http://statistics.data.gov.uk/id/local-authority/30UE,Central Support Services,1009,Commercial & Property,Professional Fees,40063,Services,5027,Extension to professional services,06/08/2021,0159478,"5,200.00",Revenue,Perfect Circle JV Ltd,76438,,
Chorley Borough Council,http://statistics.data.gov.uk/id/local-authority/30UE,Service Management & Support,1009,Customer & Digital,Diesel/Derv,30007,Direct Transport Costs,5016,as per quotation on The Chest for 8000 Litres DERV @1.04 per litre,25/08/2021,0159714,"8,320.00",Revenue,Pilkington Oils,18075,,
Chorley Borough Council,http://statistics.data.gov.uk/id/local-authority/30UE,Service Management & Support,1009,Customer & Digital,Diesel/Derv,30007,Direct Transport Costs,5016,as per quotation on The Chest for 2600 litres Gas Oil @0.59 per litre,25/08/2021,0159729,"1,534.00",Revenue,Pilkington Oils,18075,,
Chorley Borough Council,http://statistics.data.gov.uk/id/local-authority/30UE,Business Support,1095,Commercial & Property,Promotional Expenses,40159,Miscellaneous Expenses,5034,"Market Walk and Town Centre, Chorley - Footfall Services, Initial set up fee @ 1000.00",06/08/2021,0159454,"1,000.00",Revenue,Place Informatics Ltd,82452,,
Chorley Borough Council,http://statistics.data.gov.uk/id/local-authority/30UE,Business Support,1095,Commercial & Property,Promotional Expenses,40159,Miscellaneous Expenses,5034,12 month licence fee for Market Walk and Town Centre Footfall Services for period 01.07.2021 - 30.06.2022,06/08/2021,0159454,"3,420.00",Revenue,Place Informatics Ltd,82452,,
Chorley Borough Council,http://statistics.data.gov.uk/id/local-authority/30UE,Business Support,1095,Commercial & Property,Promotional Expenses,40159,Miscellaneous Expenses,5034,credit rec`d,18/08/2021,0159600,"4,420.00",Revenue,Place Informatics Ltd,82452,,
Chorley Borough Council,http://statistics.data.gov.uk/id/local-authority/30UE,Development Control,1091,Customer & Digital,Professional Fees,40063,Services,5027,Planning Enforcement Services 18 April 2021 to March 2022,06/08/2021,0158809,"1,271.70",Revenue,Planning and PACE Solutions Ltd,82083,,
Chorley Borough Council,http://statistics.data.gov.uk/id/local-authority/30UE,Development Control,1091,Customer & Digital,Professional Fees,40063,Services,5027,"Planning Enforcement Services, 18 April 2021 to March 2022",06/08/2021,0158952,"1,330.00",Revenue,Planning and PACE Solutions Ltd,82083,,
Chorley Borough Council,http://statistics.data.gov.uk/id/local-authority/30UE,Democratic Represent and  Mgnt,1007,Communities,Grounds Maintenance Contractor,20043,Grounds Maintenance Costs,5013,"Tree-ometer design and manufacturer to Quote Ref 157881/1, Delivery to Astley Park Flower Show",06/08/2021,0159522,"1,687.73",Revenue,Poppy Signs Ltd,21898,,
Chorley Borough Council,http://statistics.data.gov.uk/id/local-authority/30UE,Elections,1012,Policy & Governance,Postages,40082,Communication and Computing,5028,CCA mailings 2021,18/08/2021,0159189,"13,939.84",Revenue,Print Image Facilities LLP,57870,,
Chorley Borough Council,http://statistics.data.gov.uk/id/local-authority/30UE,Elections,1012,Policy & Governance,Postages,40082,Communication and Computing,5028,CCB postage,06/08/2021,0159452,"5,207.60",Revenue,Print Image Facilities LLP,57870,,
Chorley Borough Council,http://statistics.data.gov.uk/id/local-authority/30UE,Elections,1012,Policy & Governance,Printing,40043,"Printing, Stationery & General",5026,"canvass 2021 - CCA letters, BRE envelopes and outer envelopes",18/08/2021,0159867,"6,994.44",Revenue,Print Image Network,21171,,
Chorley Borough Council,http://statistics.data.gov.uk/id/local-authority/30UE,Homelessness,1075,Communities,External Contractor,40198,Miscellaneous Expenses,5034,Control Centre Monitoring (Homeless Out of Hours Service Provision) From 01/04/2021 to 31/03/2022,25/08/2021,0159956,"4,287.06",Revenue,Progress Housing Group,64340,,
Chorley Borough Council,http://statistics.data.gov.uk/id/local-authority/30UE,Democratic Represent and  Mgnt,1007,Communities,Supplies-Grounds Maintenance,40025,"Equipment, Furniture & Materia",5023,Play area supply and installation at Jubilee Way,13/08/2021,0159102,"14,999.99",Revenue,Proludic Ltd,22087,,
Chorley Borough Council,http://statistics.data.gov.uk/id/local-authority/30UE,Other Short Term Creditors,,Policy & Governance,General Balances,00100,Balance Sheet,Balance,Salary deductions,25/08/2021,0160042,"3,774.00",Revenue,PRUDENTIAL,18178,,
Chorley Borough Council,http://statistics.data.gov.uk/id/local-authority/30UE,Capital,Capital,Commercial & Property,Main Contractor,03007,Capital Expenditure,Capital,Construction of Whittle GP surgery,06/08/2021,0158988,"324,818.66",Capital,Rayner Rowen Construction Limited,80915,,
Chorley Borough Council,http://statistics.data.gov.uk/id/local-authority/30UE,Business Support,1095,Commercial & Property,General Repairs - Reactive,20004,Repairs Maintenance & Alts,5005,"8 Service Inspections for Mice, Rats including Call Outs, 2 Service Inspections for Pigeon Trapping, Total 1880.80 +VAT",25/08/2021,0159596,470.20,Revenue,Rentokil,76639,,
Chorley Borough Council,http://statistics.data.gov.uk/id/local-authority/30UE,Corporate Management,1008,Policy & Governance,Other Fees,40212,Miscellaneous Expenses,5034,2020/21 admin fee for the Lancashire Business Rates Pool,18/08/2021,0159921,"1,818.18",Revenue,Ribble Valley Borough Council,77109,,
Chorley Borough Council,http://statistics.data.gov.uk/id/local-authority/30UE,Central Support Services,1009,Commercial & Property,Consultants` Fees,40077,Services,5027,"Project Management & Quantity Surveying Services, Tatton Regeneration scheme from Contractor appointment to RIBA Stage 7",25/08/2021,0159870,"8,535.00",Revenue,Rider Levett Bucknall,67527,,
Chorley Borough Council,http://statistics.data.gov.uk/id/local-authority/30UE,Central Support Services,1009,Commercial & Property,Professional Fees,40063,Services,5027,"Rightmove advertising for 12 months - 7-18 properties band, 6 months at 235pm, 6 months at 570pm",11/08/2021,0159466,570.00,Revenue,Rightmove Group Ltd,77717,,
Chorley Borough Council,http://statistics.data.gov.uk/id/local-authority/30UE,Central Support Services,1009,Commercial & Property,Professional Fees,40063,Services,5027,"Rightmove advertising for 12 months - 7-18 properties band, 6 months at 235pm, 6 months at 570pm",25/08/2021,0159995,570.00,Revenue,Rightmove Group Ltd,77717,,
Chorley Borough Council,http://statistics.data.gov.uk/id/local-authority/30UE,Democratic Represent and  Mgnt,1007,Policy & Governance,Souvenirs,40033,"Equipment, Furniture & Materia",5023,"Leggy Terracotta Planter, Little Leggy Terracotta Planter, Mini Woodland Fox Planter, Barney the Dog Planter",11/08/2021,0158963,910.80,Revenue,RJB Stone LTD t/a Sass & Belle,80514,,
Chorley Borough Council,http://statistics.data.gov.uk/id/local-authority/30UE,Democratic Represent and  Mgnt,1007,Communities,Training Course Fees,17010,Indirect Employee Expenses,5002,New Candidate Pack inc AED - candidate manual & assessment forms x12 57.00 684.00,11/08/2021,0159594,684.00,Revenue,RLSS Direct,80891,,
Chorley Borough Council,http://statistics.data.gov.uk/id/local-authority/30UE,Central Support Services,1009,Commercial & Property,Professional Fees,40063,Services,5027,"review the valuation of the Alker Lane units, fao NAME REDACTED",06/08/2021,0159480,450.00,Revenue,Robert Pinkus & Co,19273,,
Chorley Borough Council,http://statistics.data.gov.uk/id/local-authority/30UE,Capital,Capital,Commercial & Property,Main Contractor,03007,Capital Expenditure,Capital,"Delivery of the Tatton regeneration scheme, All in accordance with the executed NEC Engineering & Construct Contract",11/08/2021,0159593,"552,706.45",Capital,Robertson CE Limited,81176,,
Chorley Borough Council,http://statistics.data.gov.uk/id/local-authority/30UE,Capital,Capital,Communities,Consultants Fees,03025,Capital Expenditure,Capital,Westway Playing Fields - Stage 5 (construction),13/08/2021,0158814,"1,810.15",Capital,Robinson Low Francis LLP,77155,,
Chorley Borough Council,http://statistics.data.gov.uk/id/local-authority/30UE,Capital,Capital,Communities,Consultants Fees,03025,Capital Expenditure,Capital,Westway Playing Fields - Stage 5 (construction),13/08/2021,0158833,581.49,Capital,Robinson Low Francis LLP,77155,,
Chorley Borough Council,http://statistics.data.gov.uk/id/local-authority/30UE,Capital,Capital,Commercial & Property,Other Capital Related Fees,03024,Capital Expenditure,Capital,"Works to guttering at Chorley Market. Labour, Powder Coating, Sealant & colour coded fixings & access.",06/08/2021,0158959,534.30,Capital,Roof Drainage Systems Ltd,81977,,
Chorley Borough Council,http://statistics.data.gov.uk/id/local-authority/30UE,Capital,Capital,Commercial & Property,Other Capital Related Fees,03024,Capital Expenditure,Capital,2mm Bullnose Aluminium Fascia System to close off void above central gutter line inclusive of stop ends and integral buttstraps,06/08/2021,0158959,"10,287.75",Capital,Roof Drainage Systems Ltd,81977,,
Chorley Borough Council,http://statistics.data.gov.uk/id/local-authority/30UE,Capital,Capital,Commercial & Property,Other Capital Related Fees,03024,Capital Expenditure,Capital,200x175 Box Gutter (3mm aluminium) incl of integral welded brackets 87m @ 49.65 each = 4319.55,06/08/2021,0158959,"4,319.55",Capital,Roof Drainage Systems Ltd,81977,,
Chorley Borough Council,http://statistics.data.gov.uk/id/local-authority/30UE,Capital,Capital,Commercial & Property,Other Capital Related Fees,03024,Capital Expenditure,Capital,Stop ends 12no @ 16.45each =  197.40,06/08/2021,0158959,197.40,Capital,Roof Drainage Systems Ltd,81977,,
Chorley Borough Council,http://statistics.data.gov.uk/id/local-authority/30UE,Capital,Capital,Commercial & Property,Other Capital Related Fees,03024,Capital Expenditure,Capital,Mitred angles x1 @ 29.40,06/08/2021,0158959,29.40,Capital,Roof Drainage Systems Ltd,81977,,
Chorley Borough Council,http://statistics.data.gov.uk/id/local-authority/30UE,Capital,Capital,Commercial & Property,Other Capital Related Fees,03024,Capital Expenditure,Capital,100mm patch outlets to gutter 12 @ 19.10 = 229.20,06/08/2021,0158959,229.20,Capital,Roof Drainage Systems Ltd,81977,,
Chorley Borough Council,http://statistics.data.gov.uk/id/local-authority/30UE,Capital,Capital,Commercial & Property,Other Capital Related Fees,03024,Capital Expenditure,Capital,100mm Offsets bends - 64@ 26.45 = 1692.80,06/08/2021,0158959,"1,692.80",Capital,Roof Drainage Systems Ltd,81977,,
Chorley Borough Council,http://statistics.data.gov.uk/id/local-authority/30UE,Capital,Capital,Commercial & Property,Other Capital Related Fees,03024,Capital Expenditure,Capital,100mm Diam. Aluminium Rainwater Pipe Inc brackets - 121m @39.65 = 4797.65,06/08/2021,0158959,"4,797.65",Capital,Roof Drainage Systems Ltd,81977,,
Chorley Borough Council,http://statistics.data.gov.uk/id/local-authority/30UE,Capital,Capital,Commercial & Property,Other Capital Related Fees,03024,Capital Expenditure,Capital,Seamless gutter to high level walkway 64m @ 25.0 = 1600.0,06/08/2021,0158959,"1,600.00",Capital,Roof Drainage Systems Ltd,81977,,
Chorley Borough Council,http://statistics.data.gov.uk/id/local-authority/30UE,Tourism,1039,Policy & Governance,External Contractor,40198,Miscellaneous Expenses,5034,Installation and storage of Staging at Flower Show,13/08/2021,0159717,"9,557.50",Revenue,RPM Events,70613,,
Chorley Borough Council,http://statistics.data.gov.uk/id/local-authority/30UE,Unapportionable Central OHeads,1009,Policy & Governance,HR Approved Occ Health Fees,15201,Indirect Employee Expenses,5002,Counselling sessions for staff in July 2021,18/08/2021,0159592,315.00,Revenue,Sarah Walsh,78412,,
Chorley Borough Council,http://statistics.data.gov.uk/id/local-authority/30UE,Business Support,1095,Commercial & Property,External Contractor,40198,Miscellaneous Expenses,5034,Concierge services April 2021 to March 2022,13/08/2021,0159576,"6,930.63",Revenue,Sector Security Services,19269,,
Chorley Borough Council,http://statistics.data.gov.uk/id/local-authority/30UE,Democratic Represent and  Mgnt,1007,Communities,Miscellaneous Expenses,40200,Miscellaneous Expenses,5034,"Monthy Service Charges - as per Quote 2866, 9 months, July 21 - March 22",11/08/2021,0159525,"1,595.00",Revenue,Service Sport Ltd,65601,,
Chorley Borough Council,http://statistics.data.gov.uk/id/local-authority/30UE,Central Support Services,1009,Commercial & Property,Professional Fees,40063,Services,5027,"Stage 1/2 Road Safety Audit, Tatton scheme, desktop study, site visit, provision of written report detailing road safety issues",13/08/2021,0159720,780.00,Revenue,Six Ten Highways and Traffic Limited,82373,,
Chorley Borough Council,http://statistics.data.gov.uk/id/local-authority/30UE,Control Accounts,Control,Policy & Governance,General Balances,00100,Balance Sheet,Balance,monthly deds from expenses,25/08/2021,0160022,377.58,Revenue,St Catherines Hospice Promotions,72375,,
Chorley Borough Council,http://statistics.data.gov.uk/id/local-authority/30UE,Capital,Capital,Communities,Grants,03002,Capital Expenditure,Capital,ADDRESS REDACTED,06/08/2021,0159327,"14,165.00",Capital,Stannah Lift Services Ltd,80943,,
Chorley Borough Council,http://statistics.data.gov.uk/id/local-authority/30UE,Capital,Capital,Communities,Grants,03002,Capital Expenditure,Capital,ADDRESS REDACTED,11/08/2021,0159673,"3,442.00",Capital,Stannah Lift Services Ltd,80943,,
Chorley Borough Council,http://statistics.data.gov.uk/id/local-authority/30UE,Capital,Capital,Communities,Grants,03002,Capital Expenditure,Capital,ADDRESS REDACTED,11/08/2021,0159674,"2,904.00",Capital,Stannah Lift Services Ltd,80943,,
Chorley Borough Council,http://statistics.data.gov.uk/id/local-authority/30UE,Capital,Capital,Communities,Grants,03002,Capital Expenditure,Capital,ADDRESS REDACTED,18/08/2021,0159888,"5,239.00",Capital,Stannah Lift Services Ltd,80943,,
Chorley Borough Council,http://statistics.data.gov.uk/id/local-authority/30UE,Central Support Services,1009,Customer & Digital,Computer Equipment-Purchase,40098,Communication and Computing,5028,8 x iPad Mini WiFi/Cellular 64Gb - Space Grey,06/08/2021,0158298,"3,341.12",Revenue,Starcom Technologies Limited,20541,,
Chorley Borough Council,http://statistics.data.gov.uk/id/local-authority/30UE,Parking Services,1066,Commercial & Property,Consultants` Fees,40077,Services,5027,"Provision of Public Realm & Highway Design, Engineering services, April 2021 � January 2022, Invoiced monthly",06/08/2021,0159472,"3,511.35",Revenue,Street Civil Engineering Limited,76750,,
Chorley Borough Council,http://statistics.data.gov.uk/id/local-authority/30UE,Democratic Represent and  Mgnt,1007,Commercial & Property,Asset Maintenance Fund,20012,Repairs Maintenance & Alts,5005,scaffold hire for Astley - 02/04/2021-28/05/2021,06/08/2021,0159324,541.20,Revenue,Stringfellow Bldg Cntrctrs Ltd,17893,,
Chorley Borough Council,http://statistics.data.gov.uk/id/local-authority/30UE,Capital,Capital,Communities,Grants,03002,Capital Expenditure,Capital,ADDRESS REDACTED,06/08/2021,0159325,"4,200.00",Capital,Stringfellow Bldg Cntrctrs Ltd,17893,,
Chorley Borough Council,http://statistics.data.gov.uk/id/local-authority/30UE,Capital,Capital,Communities,Grants,03002,Capital Expenditure,Capital,ADDRESS REDACTED,25/08/2021,0160024,"4,782.50",Capital,Stringfellow Bldg Cntrctrs Ltd,17893,,
Chorley Borough Council,http://statistics.data.gov.uk/id/local-authority/30UE,Service Management & Support,1009,Customer & Digital,Refuse Collection,20037,Cleaning and Domestic Supplies,5012,Exchange 20 yard Street Sweeping Skip @ 80.96 to cover period  01/04/2021 - 31/03/2022,02/08/2021,0159234,"3,995.12",Revenue,SUEZ R&R UK LTD,17615,,
Chorley Borough Council,http://statistics.data.gov.uk/id/local-authority/30UE,Service Management & Support,1009,Customer & Digital,Refuse Collection,20037,Cleaning and Domestic Supplies,5012,Exchange 20 yard Street Sweeping Skip @ 80.96 to cover period  01/04/2021 - 31/03/2022,02/08/2021,0159235,"2,392.93",Revenue,SUEZ R&R UK LTD,17615,,
Chorley Borough Council,http://statistics.data.gov.uk/id/local-authority/30UE,Service Management & Support,1009,Customer & Digital,Refuse Collection,20037,Cleaning and Domestic Supplies,5012,Exchange 20 yard Street Sweeping Skip @ 80.96 to cover period  01/04/2021 - 31/03/2022,02/08/2021,0159236,"1,261.26",Revenue,SUEZ R&R UK LTD,17615,,
Chorley Borough Council,http://statistics.data.gov.uk/id/local-authority/30UE,Service Management & Support,1009,Customer & Digital,Refuse Collection,20037,Cleaning and Domestic Supplies,5012,Exchange 20 yard Street Sweeping Skip @ 80.96 to cover period  01/04/2021 - 31/03/2022,02/08/2021,0159237,"1,711.71",Revenue,SUEZ R&R UK LTD,17615,,
Chorley Borough Council,http://statistics.data.gov.uk/id/local-authority/30UE,Service Management & Support,1009,Customer & Digital,Refuse Collection,20037,Cleaning and Domestic Supplies,5012,Exchange 20 yard Street Sweeping Skip @ 80.96 to cover period  01/04/2021 - 31/03/2022,02/08/2021,0159238,738.74,Revenue,SUEZ R&R UK LTD,17615,,
Chorley Borough Council,http://statistics.data.gov.uk/id/local-authority/30UE,Service Management & Support,1009,Customer & Digital,Refuse Collection,20037,Cleaning and Domestic Supplies,5012,Exchange 35 yard General Waste Skip @ 89.94 to cover period  01/04/2021 - 31/03/2022,02/08/2021,0159238,"3,750.84",Revenue,SUEZ R&R UK LTD,17615,,
Chorley Borough Council,http://statistics.data.gov.uk/id/local-authority/30UE,Service Management & Support,1009,Customer & Digital,Refuse Collection,20037,Cleaning and Domestic Supplies,5012,Exchange 35 yard General Waste Skip @ 89.94 to cover period  01/04/2021 - 31/03/2022,02/08/2021,0159239,"1,987.08",Revenue,SUEZ R&R UK LTD,17615,,
Chorley Borough Council,http://statistics.data.gov.uk/id/local-authority/30UE,Service Management & Support,1009,Customer & Digital,Refuse Collection,20037,Cleaning and Domestic Supplies,5012,Exchange 35 yard Green Waste skip @ 84.26 to cover period 01/04/2021 - 31/03/2022,02/08/2021,0159239,"1,414.36",Revenue,SUEZ R&R UK LTD,17615,,
Chorley Borough Council,http://statistics.data.gov.uk/id/local-authority/30UE,Service Management & Support,1009,Customer & Digital,Refuse Collection,20037,Cleaning and Domestic Supplies,5012,Exchange 35 yard Green Waste skip @ 84.26 to cover period 01/04/2021 - 31/03/2022,02/08/2021,0159240,"1,535.29",Revenue,SUEZ R&R UK LTD,17615,,
Chorley Borough Council,http://statistics.data.gov.uk/id/local-authority/30UE,Service Management & Support,1009,Customer & Digital,Refuse Collection,20037,Cleaning and Domestic Supplies,5012,Disposal charge and processing of Green Waste @ 37.50 per tonne,02/08/2021,0159240,"2,558.63",Revenue,SUEZ R&R UK LTD,17615,,
Chorley Borough Council,http://statistics.data.gov.uk/id/local-authority/30UE,Democratic Represent and  Mgnt,1007,Communities,External Contractor,40198,Miscellaneous Expenses,5034,"14yrd skip, Crosse Hall Allotments. Friday 2nd July - Monday 5th July. The pedestrian gate post comes out to make track wider",06/08/2021,0159482,341.26,Revenue,SUEZ R&R UK LTD,17615,,
Chorley Borough Council,http://statistics.data.gov.uk/id/local-authority/30UE,Unapportionable Central OHeads,1009,Customer & Digital,Refuse Collection,20037,Cleaning and Domestic Supplies,5012,"Trade Waste (1 April 21 to 31 March 22) Town Hall, PR7 1DP GENERAL WASTE 1 x 1100L bin 3 times per week.",11/08/2021,0159483,113.01,Revenue,SUEZ R&R UK LTD,17615,,
Chorley Borough Council,http://statistics.data.gov.uk/id/local-authority/30UE,Unapportionable Central OHeads,1009,Customer & Digital,Refuse Collection,20037,Cleaning and Domestic Supplies,5012,"Trade Waste (1 April 21 to 31 March 22). Town Hall, PR7 1DP MIXED RECYCLING  1 x 1100L bin once per week.",11/08/2021,0159483,22.01,Revenue,SUEZ R&R UK LTD,17615,,
Chorley Borough Council,http://statistics.data.gov.uk/id/local-authority/30UE,Unapportionable Central OHeads,1009,Customer & Digital,Refuse Collection,20037,Cleaning and Domestic Supplies,5012,Trade Waste (1 April 21 to 31 March 22). Civic Offices PR7 1AL GENERAL WASTE   2 x 1100L bin 3 times per week.,11/08/2021,0159483,226.03,Revenue,SUEZ R&R UK LTD,17615,,
Chorley Borough Council,http://statistics.data.gov.uk/id/local-authority/30UE,Unapportionable Central OHeads,1009,Customer & Digital,Refuse Collection,20037,Cleaning and Domestic Supplies,5012,Trade Waste (1 April 21 to 31 March 22). Civic Offices PR7 1AL MIXED RECYCLING   1 x 1100L bin once per week.,11/08/2021,0159483,22.01,Revenue,SUEZ R&R UK LTD,17615,,
Chorley Borough Council,http://statistics.data.gov.uk/id/local-authority/30UE,Democratic Represent and  Mgnt,1007,Customer & Digital,Refuse Collection,20037,Cleaning and Domestic Supplies,5012,"Trade Waste (1 April 21 to 31 March 22). Astley Hall, PR7 1NP GENERAL WASTE   1 x 1100L bin once per week.",11/08/2021,0159483,37.67,Revenue,SUEZ R&R UK LTD,17615,,
Chorley Borough Council,http://statistics.data.gov.uk/id/local-authority/30UE,Community Development,1097,Customer & Digital,Refuse Collection,20037,Cleaning and Domestic Supplies,5012,"TRADE WASTE (FY 2021-2022) MPs Constituency Office 35-39 Market Street, PR7 2SW  1 X1100 L bin emptied once per week",11/08/2021,0159483,37.67,Revenue,SUEZ R&R UK LTD,17615,,
Chorley Borough Council,http://statistics.data.gov.uk/id/local-authority/30UE,Democratic Represent and  Mgnt,1007,Customer & Digital,Refuse Collection,20037,Cleaning and Domestic Supplies,5012,"TRADE WASTE (April 2021-March 2022) Eaves Green Community Centre, PR7 3QG, 1 X 360 L bin emptied once per week",11/08/2021,0159483,20.49,Revenue,SUEZ R&R UK LTD,17615,,
Chorley Borough Council,http://statistics.data.gov.uk/id/local-authority/30UE,Democratic Represent and  Mgnt,1007,Customer & Digital,Refuse Collection,20037,Cleaning and Domestic Supplies,5012,"TRADE WASTE (April 2021 - March 2022) Astley Village Community Centre, PR7 1XA   1 X 360 L bin emptied once per week",11/08/2021,0159483,20.49,Revenue,SUEZ R&R UK LTD,17615,,
Chorley Borough Council,http://statistics.data.gov.uk/id/local-authority/30UE,Recreation & Sport,1037,Customer & Digital,Miscellaneous Expenses,40200,Miscellaneous Expenses,5034,"TRADE WASTE (April 2021-March 2022) Buttermere Green Community Centre,  PR7 2JG  1 X 360 L bin emptied once per week",11/08/2021,0159483,20.49,Revenue,SUEZ R&R UK LTD,17615,,
Chorley Borough Council,http://statistics.data.gov.uk/id/local-authority/30UE,Recreation & Sport,1037,Customer & Digital,Miscellaneous Expenses,40200,Miscellaneous Expenses,5034,"TRADE WASTE (April 2021 - March 2022) Lancaster Way Community Centre, PR7 7LJ, 1 X 360 L bin emptied once per week",11/08/2021,0159483,20.49,Revenue,SUEZ R&R UK LTD,17615,,
Chorley Borough Council,http://statistics.data.gov.uk/id/local-authority/30UE,Democratic Represent and  Mgnt,1007,Customer & Digital,Refuse Collection,20037,Cleaning and Domestic Supplies,5012,"TRADE WASTE (April 2021-March 2022) Tatton Community Centre, PR6 0PL 1 X 360 L bin emptied once per week",11/08/2021,0159483,20.49,Revenue,SUEZ R&R UK LTD,17615,,
Chorley Borough Council,http://statistics.data.gov.uk/id/local-authority/30UE,Democratic Represent and  Mgnt,1007,Customer & Digital,Refuse Collection,20037,Cleaning and Domestic Supplies,5012,"TRADE WASTE (April 2021 - March 2022) Clayton Brook Village Hall, Clayton Brook, PR5 8SE, Refuse Sacks -6 per week",11/08/2021,0159483,24.80,Revenue,SUEZ R&R UK LTD,17615,,
Chorley Borough Council,http://statistics.data.gov.uk/id/local-authority/30UE,Business Support,1095,Customer & Digital,Refuse Collection,20037,Cleaning and Domestic Supplies,5012,"TRADE WASTE (04/2021-03/2022) Strawberry Fields Digital Hub, PR7 1PQ, GENERAL WASTE 3 X 1100L bins once per week",11/08/2021,0159483,113.01,Revenue,SUEZ R&R UK LTD,17615,,
Chorley Borough Council,http://statistics.data.gov.uk/id/local-authority/30UE,Business Support,1095,Customer & Digital,Refuse Collection,20037,Cleaning and Domestic Supplies,5012,"TRADE WASTE (04/2021-03/2022) Strawberry Fields Digital Hub, PR7 1PQ, MIXED RECYCLING 3 X 1100L bins once per week",11/08/2021,0159483,66.03,Revenue,SUEZ R&R UK LTD,17615,,
Chorley Borough Council,http://statistics.data.gov.uk/id/local-authority/30UE,Democratic Represent and  Mgnt,1007,Customer & Digital,Miscellaneous Expenses,40200,Miscellaneous Expenses,5034,"TRADE WASTE (04/2021 - 03/2022) All Seasons Leisure Centre, PR7 1EX GENERAL WASTE 2 X 1100L bins once per week",11/08/2021,0159483,75.34,Revenue,SUEZ R&R UK LTD,17615,,
Chorley Borough Council,http://statistics.data.gov.uk/id/local-authority/30UE,Democratic Represent and  Mgnt,1007,Customer & Digital,Miscellaneous Expenses,40200,Miscellaneous Expenses,5034,"TRADE WASTE (04/2021 - 03/2022) All Seasons Leisure Centre, PR7 1EX MIXED RECYCLING 1 X 1100L bins once per week",11/08/2021,0159483,22.01,Revenue,SUEZ R&R UK LTD,17615,,
Chorley Borough Council,http://statistics.data.gov.uk/id/local-authority/30UE,Democratic Represent and  Mgnt,1007,Customer & Digital,Miscellaneous Expenses,40200,Miscellaneous Expenses,5034,"TRADE WASTE (04/2021 - 03/2022) Clayton Green Sports Centre, PR6 7TL, GENERAL WASTE 1 X 1100L bins once per week",11/08/2021,0159483,37.67,Revenue,SUEZ R&R UK LTD,17615,,
Chorley Borough Council,http://statistics.data.gov.uk/id/local-authority/30UE,Democratic Represent and  Mgnt,1007,Customer & Digital,Miscellaneous Expenses,40200,Miscellaneous Expenses,5034,"TRADE WASTE (04/21-03/22) Clayton Green Sports Centre, PR6 7TL MIXED RECYCLING 1X1100L bin once EVERY 2 WEEKS",11/08/2021,0159483,10.98,Revenue,SUEZ R&R UK LTD,17615,,
Chorley Borough Council,http://statistics.data.gov.uk/id/local-authority/30UE,Democratic Represent and  Mgnt,1007,Customer & Digital,Miscellaneous Expenses,40200,Miscellaneous Expenses,5034,"TRADE WASTE (04/2021-03/2022) Brinscall Public Baths, PR6 8QR MIXED RECYCLING 1X1100L bin once EVERY 2 WEEKS",11/08/2021,0159483,10.98,Revenue,SUEZ R&R UK LTD,17615,,
Chorley Borough Council,http://statistics.data.gov.uk/id/local-authority/30UE,Democratic Represent and  Mgnt,1007,Customer & Digital,Miscellaneous Expenses,40200,Miscellaneous Expenses,5034,"TRADE WASTE (April 2021 - March 2022) Brinscall Public Baths, PR6 8QR GENERAL WASTE 1 X 1100L bin once per week.",11/08/2021,0159483,37.67,Revenue,SUEZ R&R UK LTD,17615,,
Chorley Borough Council,http://statistics.data.gov.uk/id/local-authority/30UE,Economic Development,1096,Commercial & Property,Refuse Collection,20037,Cleaning and Domestic Supplies,5012,"Market Walk/Market Walk Extension/Markets/Calico Lounge/Reel Cinema Waste Removal, Emptied 3 times per week",06/08/2021,0159485,"2,260.26",Revenue,SUEZ R&R UK LTD,17615,,
Chorley Borough Council,http://statistics.data.gov.uk/id/local-authority/30UE,Economic Development,1096,Commercial & Property,Refuse Collection,20037,Cleaning and Domestic Supplies,5012,"Market Walk YARD 1 - GENERAL WASTE (Market Walk) - 8 cubic yard FEL skip x 1, 55.78 per week",06/08/2021,0159485,241.77,Revenue,SUEZ R&R UK LTD,17615,,
Chorley Borough Council,http://statistics.data.gov.uk/id/local-authority/30UE,Economic Development,1096,Commercial & Property,Refuse Collection,20037,Cleaning and Domestic Supplies,5012,"Market Walk YARD 1 - CARDBOARD ONLY - 35 cubic yard RoRo skip x 1, 25 per month",06/08/2021,0159485,25.00,Revenue,SUEZ R&R UK LTD,17615,,
Chorley Borough Council,http://statistics.data.gov.uk/id/local-authority/30UE,Business Support,1095,Commercial & Property,Refuse Collection,20037,Cleaning and Domestic Supplies,5012,"Market Walk YARD 2 - CARDBOARD ONLY - 35 cubic yard RoRo skip x 1, 25 per month",06/08/2021,0159485,25.00,Revenue,SUEZ R&R UK LTD,17615,,
Chorley Borough Council,http://statistics.data.gov.uk/id/local-authority/30UE,Business Support,1095,Commercial & Property,Refuse Collection,20037,Cleaning and Domestic Supplies,5012,"Market Walk YARD 2 - GENERAL WASTE - 8 cubic yard FEL skip x 1, 55.78 per week",06/08/2021,0159485,242.64,Revenue,SUEZ R&R UK LTD,17615,,
Chorley Borough Council,http://statistics.data.gov.uk/id/local-authority/30UE,Business Support,1095,Commercial & Property,Refuse Collection,20037,Cleaning and Domestic Supplies,5012,"Market Walk YARD 3 - GENERAL WASTE - 8 cubic yard FEL skip x 2, 55.78 per skip per week. (111.56 pw for 2 skips)",06/08/2021,0159485,485.29,Revenue,SUEZ R&R UK LTD,17615,,
Chorley Borough Council,http://statistics.data.gov.uk/id/local-authority/30UE,Business Support,1095,Commercial & Property,Refuse Collection,20037,Cleaning and Domestic Supplies,5012,"Market Walk YARD 3 - CARDBOARD ONLY - 35 cubic yard RoRo skip x 1, 25 per month",06/08/2021,0159485,25.00,Revenue,SUEZ R&R UK LTD,17615,,
Chorley Borough Council,http://statistics.data.gov.uk/id/local-authority/30UE,Business Support,1095,Commercial & Property,Refuse Collection,20037,Cleaning and Domestic Supplies,5012,"Market Walk YARD 3 - PLASTIC FILM - 35 cubic yard RoRo skip x 1, 25 per month",06/08/2021,0159485,25.00,Revenue,SUEZ R&R UK LTD,17615,,
Chorley Borough Council,http://statistics.data.gov.uk/id/local-authority/30UE,Business Support,1095,Commercial & Property,Refuse Collection,20037,Cleaning and Domestic Supplies,5012,"Market Walk Ext, Chorley PR7 1FD - GENERAL WASTE - Euro 1100 Litre x 8. 8.66 per bin per week",06/08/2021,0159485,301.37,Revenue,SUEZ R&R UK LTD,17615,,
Chorley Borough Council,http://statistics.data.gov.uk/id/local-authority/30UE,Business Support,1095,Commercial & Property,Refuse Collection,20037,Cleaning and Domestic Supplies,5012,"Market Walk Ext, Chorley PR7 1FD - MIXED RECYCLING - Euro 1100 Litre x 8. 5.06 per bin per week",06/08/2021,0159485,176.09,Revenue,SUEZ R&R UK LTD,17615,,
Chorley Borough Council,http://statistics.data.gov.uk/id/local-authority/30UE,Business Support,1095,Commercial & Property,Refuse Collection,20037,Cleaning and Domestic Supplies,5012,"Market Walk Ext, Chorley PR7 1FD - FOOD WASTE - 240 Litre bins x 4. 8.75 per bin per week",06/08/2021,0159485,94.72,Revenue,SUEZ R&R UK LTD,17615,,
Chorley Borough Council,http://statistics.data.gov.uk/id/local-authority/30UE,Business Support,1095,Commercial & Property,Refuse Collection,20037,Cleaning and Domestic Supplies,5012,"Market Walk Ext, Chorley PR7 1FD - GLASS ONLY - 240 Litre bins x 6. 3.75 per bin per week",06/08/2021,0159485,75.95,Revenue,SUEZ R&R UK LTD,17615,,
Chorley Borough Council,http://statistics.data.gov.uk/id/local-authority/30UE,Business Support,1095,Commercial & Property,Refuse Collection,20037,Cleaning and Domestic Supplies,5012,"Calico Lounge, Market Walk, Chorley, PR7 1FD - GENERAL WASTE - Euro 1100 Litre bins x 3. 8.66 per bin per week",06/08/2021,0159485,113.01,Revenue,SUEZ R&R UK LTD,17615,,
Chorley Borough Council,http://statistics.data.gov.uk/id/local-authority/30UE,Business Support,1095,Commercial & Property,Refuse Collection,20037,Cleaning and Domestic Supplies,5012,"Calico Lounge, Market Walk, Chorley, PR7 1FD - MIXED RECYCLING - Euro 1100 Litre bins x 3. 5.06 per bin per week",06/08/2021,0159485,66.03,Revenue,SUEZ R&R UK LTD,17615,,
Chorley Borough Council,http://statistics.data.gov.uk/id/local-authority/30UE,Business Support,1095,Commercial & Property,Refuse Collection,20037,Cleaning and Domestic Supplies,5012,"Calico Lounge, Market Walk, Chorley, PR7 1FD  - FOOD WASTE - 240 Litre bins x 2. 8.75 per bin per week",06/08/2021,0159485,76.13,Revenue,SUEZ R&R UK LTD,17615,,
Chorley Borough Council,http://statistics.data.gov.uk/id/local-authority/30UE,Business Support,1095,Commercial & Property,Refuse Collection,20037,Cleaning and Domestic Supplies,5012,"Calico Lounge, Market Walk, Chorley, PR7 1FD - GLASS ONLY - 240 Litre bins x 4. 3.75 per bin per week",06/08/2021,0159485,65.25,Revenue,SUEZ R&R UK LTD,17615,,
Chorley Borough Council,http://statistics.data.gov.uk/id/local-authority/30UE,Business Support,1095,Commercial & Property,Refuse Collection,20037,Cleaning and Domestic Supplies,5012,REEL Cinema - GENERAL WASTE - Euro 1100 Litre bins x 4. 8.66 per bin - emptied twice a week,06/08/2021,0159485,301.37,Revenue,SUEZ R&R UK LTD,17615,,
Chorley Borough Council,http://statistics.data.gov.uk/id/local-authority/30UE,Business Support,1095,Commercial & Property,Refuse Collection,20037,Cleaning and Domestic Supplies,5012,REEL Cinema - MIXED RECYCLING - Euro 1100 Litre bins x 2. 5.06 per bin emptied twice a week,06/08/2021,0159485,88.04,Revenue,SUEZ R&R UK LTD,17615,,
Chorley Borough Council,http://statistics.data.gov.uk/id/local-authority/30UE,Business Support,1095,Commercial & Property,Refuse Collection,20037,Cleaning and Domestic Supplies,5012,Any excess weight charges for skips & FELS,06/08/2021,0159485,18.00,Revenue,SUEZ R&R UK LTD,17615,,
Chorley Borough Council,http://statistics.data.gov.uk/id/local-authority/30UE,Service Management & Support,1009,Customer & Digital,Refuse Collection,20037,Cleaning and Domestic Supplies,5012,Exchange 20 yard Street Sweeping Skip @ 80.96 to cover period  01/04/2021 - 31/03/2022,18/08/2021,0159747,"1,079.28",Revenue,SUEZ R&R UK LTD,17615,,
Chorley Borough Council,http://statistics.data.gov.uk/id/local-authority/30UE,Service Management & Support,1009,Customer & Digital,Refuse Collection,20037,Cleaning and Domestic Supplies,5012,Exchange 35 yard General Waste Skip @ 89.94 to cover period  01/04/2021 - 31/03/2022,18/08/2021,0159747,"1,376.32",Revenue,SUEZ R&R UK LTD,17615,,
Chorley Borough Council,http://statistics.data.gov.uk/id/local-authority/30UE,Unapportionable Central OHeads,1009,Customer & Digital,Refuse Collection,20037,Cleaning and Domestic Supplies,5012,Trade waste (1 April 2020 - 31 March 2021) Civic Offices Union Street General Waste 2 X 1100L bin 3/week,18/08/2021,0159753,35.19,Revenue,SUEZ R&R UK LTD,17615,,
Chorley Borough Council,http://statistics.data.gov.uk/id/local-authority/30UE,Unapportionable Central OHeads,1009,Customer & Digital,Refuse Collection,20037,Cleaning and Domestic Supplies,5012,Trade waste (1 April 2020 - 31 March 2021) Civic Offices Union Street RECYCLING 1 X 1100L bin 1/week,18/08/2021,0159753,256.56,Revenue,SUEZ R&R UK LTD,17615,,
Chorley Borough Council,http://statistics.data.gov.uk/id/local-authority/30UE,Unapportionable Central OHeads,1009,Customer & Digital,Refuse Collection,20037,Cleaning and Domestic Supplies,5012,Trade waste (1 April 2020 - 31 March 2021) Town Hall GENERAL WASTE 1 X 1100L 3/week,18/08/2021,0159753,35.19,Revenue,SUEZ R&R UK LTD,17615,,
Chorley Borough Council,http://statistics.data.gov.uk/id/local-authority/30UE,Unapportionable Central OHeads,1009,Customer & Digital,Refuse Collection,20037,Cleaning and Domestic Supplies,5012,Trade waste (1 April 2020 - 31 March 2021) Town Hall RECYCLING 1 X 1100L 3/Week,18/08/2021,0159753,128.28,Revenue,SUEZ R&R UK LTD,17615,,
Chorley Borough Council,http://statistics.data.gov.uk/id/local-authority/30UE,Business Support,1095,Customer & Digital,Refuse Collection,20037,Cleaning and Domestic Supplies,5012,Trade waste (1 April 2020 - 31 March 2021) Strawberry fields Digital Park GENERAL WASTE 3 X 1100L 1/week,18/08/2021,0159753,105.57,Revenue,SUEZ R&R UK LTD,17615,,
Chorley Borough Council,http://statistics.data.gov.uk/id/local-authority/30UE,Business Support,1095,Customer & Digital,Refuse Collection,20037,Cleaning and Domestic Supplies,5012,Trade waste (1 April 2020 - 31 March 2021) Strawberry Fields digital park RECYCLING 3 X 1100L 1/week,18/08/2021,0159753,128.28,Revenue,SUEZ R&R UK LTD,17615,,
Chorley Borough Council,http://statistics.data.gov.uk/id/local-authority/30UE,Community Development,1097,Customer & Digital,Refuse Collection,20037,Cleaning and Domestic Supplies,5012,Trade waste (1 April 2020 - 31 March 2021) MP`s Office (35-39) Market Street 1  1100L,18/08/2021,0159753,42.76,Revenue,SUEZ R&R UK LTD,17615,,
Chorley Borough Council,http://statistics.data.gov.uk/id/local-authority/30UE,Democratic Represent and  Mgnt,1007,Customer & Digital,Refuse Collection,20037,Cleaning and Domestic Supplies,5012,Trade waste (1 April 2020 - 31 March 2021) Tatton CC Silverdale Road 1x 100L bin 1/fortnight,18/08/2021,0159753,21.33,Revenue,SUEZ R&R UK LTD,17615,,
Chorley Borough Council,http://statistics.data.gov.uk/id/local-authority/30UE,Democratic Represent and  Mgnt,1007,Customer & Digital,Refuse Collection,20037,Cleaning and Domestic Supplies,5012,Trade waste (1 April 2020 - 31 March 2021) Eaves Green CC  1  X 360L bin 1/week,18/08/2021,0159753,29.49,Revenue,SUEZ R&R UK LTD,17615,,
Chorley Borough Council,http://statistics.data.gov.uk/id/local-authority/30UE,Democratic Represent and  Mgnt,1007,Customer & Digital,Refuse Collection,20037,Cleaning and Domestic Supplies,5012,Trade waste (1 April 2020 - 31 March 2021) Astley Hall 1 X 1100L bin 1/week,18/08/2021,0159753,42.76,Revenue,SUEZ R&R UK LTD,17615,,
Chorley Borough Council,http://statistics.data.gov.uk/id/local-authority/30UE,Recreation & Sport,1037,Customer & Digital,Miscellaneous Expenses,40200,Miscellaneous Expenses,5034,Trade waste (1 April 2020 - 31 March 2021) Lancaster Way CC at Buckshaw Village 1 X 360L bin 1/week,18/08/2021,0159753,29.49,Revenue,SUEZ R&R UK LTD,17615,,
Chorley Borough Council,http://statistics.data.gov.uk/id/local-authority/30UE,Recreation & Sport,1037,Customer & Digital,Miscellaneous Expenses,40200,Miscellaneous Expenses,5034,Trade waste (1 April 2020 - 31 March 2021) Buttermere Green CC 1 X 360L BIN 1/week,18/08/2021,0159753,29.49,Revenue,SUEZ R&R UK LTD,17615,,
Chorley Borough Council,http://statistics.data.gov.uk/id/local-authority/30UE,Democratic Represent and  Mgnt,1007,Customer & Digital,Refuse Collection,20037,Cleaning and Domestic Supplies,5012,Trade waste (1 April 2020 - 31 March 2021) Astley Village CC 1 x 360L bin 1/week,18/08/2021,0159753,29.49,Revenue,SUEZ R&R UK LTD,17615,,
Chorley Borough Council,http://statistics.data.gov.uk/id/local-authority/30UE,Business Support,1095,Customer & Digital,Refuse Collection,20037,Cleaning and Domestic Supplies,5012,Trade waste Calico Lounge,18/08/2021,0159753,105.57,Revenue,SUEZ R&R UK LTD,17615,,
Chorley Borough Council,http://statistics.data.gov.uk/id/local-authority/30UE,Democratic Represent and  Mgnt,1007,Customer & Digital,Refuse Collection,20037,Cleaning and Domestic Supplies,5012,Trade waste Clayton Brook CC,18/08/2021,0159753,22.71,Revenue,SUEZ R&R UK LTD,17615,,
Chorley Borough Council,http://statistics.data.gov.uk/id/local-authority/30UE,Capital,Capital,Communities,Other Capital Related Fees,03024,Capital Expenditure,Capital,West Way Changing Pavilion - New Equipment rack (Quote no. 27160),02/08/2021,0159257,"1,094.22",Capital,Technology Solutions,72376,,
Chorley Borough Council,http://statistics.data.gov.uk/id/local-authority/30UE,Capital,Capital,Communities,Other Materials,03017,Capital Expenditure,Capital,"Westway Sports HubCCTV program of works as detailed, CCTV, Radar detectors, Commend audio speakers",13/08/2021,0159323,"11,966.32",Capital,Technology Solutions,72376,,
Chorley Borough Council,http://statistics.data.gov.uk/id/local-authority/30UE,Central Support Services,1009,Customer & Digital,CCTV Camera Maintenance,40007,"Equipment, Furniture & Materia",5023,CCTV ongoing maintenance and repair,06/08/2021,0159474,255.00,Revenue,Technology Solutions,72376,,
Chorley Borough Council,http://statistics.data.gov.uk/id/local-authority/30UE,Economic Development,1096,Commercial & Property,Publicity - Advertising,40157,Miscellaneous Expenses,5034,"Paper bags - twisted handle, 320 x 130 x 420 mm, white kraft, 100gsm",25/08/2021,0159974,"1,410.00",Revenue,Templecoombe Ltd,48607,,
Chorley Borough Council,http://statistics.data.gov.uk/id/local-authority/30UE,Central Support Services,1009,Commercial & Property,Professional Fees,40063,Services,5027,Planning Consultancy - Preparation of a Planning Application for Delivery of a Gypsy and Traveller Site at Cowling Farm,11/08/2021,0159001,"19,220.00",Revenue,Tetra Tech Environment Planning Transport Limited,76236,,
Chorley Borough Council,http://statistics.data.gov.uk/id/local-authority/30UE,Business Support,1095,Commercial & Property,Security Service,40062,Services,5027,Security cover service at Strawberry Fields to cover invoices between April 2021 to September 2021 as per pricing schedule.,06/08/2021,0159533,"7,045.49",Revenue,The ExcluSec Group Ltd,78056,,
Chorley Borough Council,http://statistics.data.gov.uk/id/local-authority/30UE,Tourism,1039,Policy & Governance,Children's Activities,40188,Miscellaneous Expenses,5034,Strolling Gardeners Walking entertainment at Chorley Flower Show,11/08/2021,0159493,"1,890.00",Revenue,The Fairly Famous Family Limited,20457,,
Chorley Borough Council,http://statistics.data.gov.uk/id/local-authority/30UE,Central Support Services,1009,Customer & Digital,Computer - Support Services,40111,Communication and Computing,5028,3 Days Professional services to assist with certificate based authentication on WiFi,25/08/2021,0159929,"1,300.00",Revenue,The Networking People (NorthWest) Ltd T/a TNP Ltd,73446,,
Chorley Borough Council,http://statistics.data.gov.uk/id/local-authority/30UE,Central Support Services,1009,Commercial & Property,Agency Staff,13000,Direct Employee Expenses,5001,NAME REDACTED Estates Surveyor Fees,06/08/2021,0159111,"1,953.18",Revenue,The Oyster Partnership Ltd,81409,,
Chorley Borough Council,http://statistics.data.gov.uk/id/local-authority/30UE,Central Support Services,1009,Commercial & Property,Agency Staff,13000,Direct Employee Expenses,5001,NAME REDACTED Estates Surveyor Fees,06/08/2021,0159312,907.81,Revenue,The Oyster Partnership Ltd,81409,,
Chorley Borough Council,http://statistics.data.gov.uk/id/local-authority/30UE,Central Support Services,1009,Commercial & Property,Agency Staff,13000,Direct Employee Expenses,5001,NAME REDACTED Estates Surveyor Fees,06/08/2021,0159313,"1,946.29",Revenue,The Oyster Partnership Ltd,81409,,
Chorley Borough Council,http://statistics.data.gov.uk/id/local-authority/30UE,Central Support Services,1009,Commercial & Property,Agency Staff,13000,Direct Employee Expenses,5001,NAME REDACTED Estates Surveyor Fees,06/08/2021,0159314,"2,221.08",Revenue,The Oyster Partnership Ltd,81409,,
Chorley Borough Council,http://statistics.data.gov.uk/id/local-authority/30UE,Central Support Services,1009,Commercial & Property,Agency Staff,13000,Direct Employee Expenses,5001,NAME REDACTED Estates Surveyor Fees,06/08/2021,0159315,"2,991.79",Revenue,The Oyster Partnership Ltd,81409,,
Chorley Borough Council,http://statistics.data.gov.uk/id/local-authority/30UE,Central Support Services,1009,Commercial & Property,Agency Staff,13000,Direct Employee Expenses,5001,NAME REDACTED Estates Surveyor Fees,06/08/2021,0159316,"1,687.08",Revenue,The Oyster Partnership Ltd,81409,,
Chorley Borough Council,http://statistics.data.gov.uk/id/local-authority/30UE,Central Support Services,1009,Commercial & Property,Agency Staff,13000,Direct Employee Expenses,5001,NAME REDACTED Estates Surveyor Fees,06/08/2021,0159317,"1,892.19",Revenue,The Oyster Partnership Ltd,81409,,
Chorley Borough Council,http://statistics.data.gov.uk/id/local-authority/30UE,Central Support Services,1009,Commercial & Property,Agency Staff,13000,Direct Employee Expenses,5001,NAME REDACTED Estates Surveyor Fees,06/08/2021,0159318,"1,907.63",Revenue,The Oyster Partnership Ltd,81409,,
Chorley Borough Council,http://statistics.data.gov.uk/id/local-authority/30UE,Central Support Services,1009,Commercial & Property,Agency Staff,13000,Direct Employee Expenses,5001,NAME REDACTED Estates Surveyor Fees,06/08/2021,0159319,"2,347.10",Revenue,The Oyster Partnership Ltd,81409,,
Chorley Borough Council,http://statistics.data.gov.uk/id/local-authority/30UE,Central Support Services,1009,Commercial & Property,Agency Staff,13000,Direct Employee Expenses,5001,NAME REDACTED Estates Surveyor Fees,06/08/2021,0159320,"2,132.68",Revenue,The Oyster Partnership Ltd,81409,,
Chorley Borough Council,http://statistics.data.gov.uk/id/local-authority/30UE,Central Support Services,1009,Commercial & Property,Agency Staff,13000,Direct Employee Expenses,5001,NAME REDACTED Estates Surveyor Fees,06/08/2021,0159321,"1,640.63",Revenue,The Oyster Partnership Ltd,81409,,
Chorley Borough Council,http://statistics.data.gov.uk/id/local-authority/30UE,Central Support Services,1009,Commercial & Property,Agency Staff,13000,Direct Employee Expenses,5001,NAME REDACTED Estates Surveyor Fees,06/08/2021,0159465,"1,826.56",Revenue,The Oyster Partnership Ltd,81409,,
Chorley Borough Council,http://statistics.data.gov.uk/id/local-authority/30UE,Corporate Management,1008,Customer & Digital,Printing,40043,"Printing, Stationery & General",5026,"20x Recycle Bin Stickers printed on s/a vinyl for outdoor use. 400mm x 400mm, 200mm x 150mm",11/08/2021,0159307,250.00,Revenue,The Print Quarter,17987,,
Chorley Borough Council,http://statistics.data.gov.uk/id/local-authority/30UE,Unapportionable Central OHeads,1009,Policy & Governance,Exhibitions & Special Events,40158,Miscellaneous Expenses,5034,"Large Feather Flags with poles and bases, 2x Large Flag Kits (incl. poles, carry case and ground rod) 2x Water bases, Delivery",11/08/2021,0159191,280.00,Revenue,UK Feather Flags (Midlands Printing Company Ltd UK,83358,,
Chorley Borough Council,http://statistics.data.gov.uk/id/local-authority/30UE,Unapportionable Central OHeads,1009,Policy & Governance,Miscellaneous Expenses,40200,Miscellaneous Expenses,5034,01 Aug 2021,18/08/2021,0159672,"1,426.00",Revenue,UK Healthcare (BDHSC),17241,,
Chorley Borough Council,http://statistics.data.gov.uk/id/local-authority/30UE,Unapportionable Central OHeads,1009,Policy & Governance,Exhibitions & Special Events,40158,Miscellaneous Expenses,5034,"2 Face Painter For Picnic in the Park (Astley Park) Sunday 15th, August between 11am - 3pm.",25/08/2021,0159868,390.00,Revenue,UK Media and Events Limited,71221,,
Chorley Borough Council,http://statistics.data.gov.uk/id/local-authority/30UE,Central Support Services,1009,Customer & Digital,Service Fees,40056,Services,5027,Daily Hybrid Mail & Annual Billing for Account No. H360363,13/08/2021,0159716,762.58,Revenue,UKMAIL Ltd (Mail),57758,,
Chorley Borough Council,http://statistics.data.gov.uk/id/local-authority/30UE,Control Accounts,Control,Policy & Governance,General Balances,00100,Balance Sheet,Balance,Monthly deductions from Payroll,18/08/2021,0159930,"1,703.70",Revenue,Unify Credit Union Ltd,55509,,
Chorley Borough Council,http://statistics.data.gov.uk/id/local-authority/30UE,Capital,Capital,Communities,Grants,03002,Capital Expenditure,Capital,ADDRESS REDACTED,18/08/2021,0159778,"4,322.50",Capital,UPS Building and Maintenance Ltd,76235,,
Chorley Borough Council,http://statistics.data.gov.uk/id/local-authority/30UE,Capital,Capital,Communities,Grants,03002,Capital Expenditure,Capital,NAME REDACTED,18/08/2021,0159779,"4,937.00",Capital,UPS Building and Maintenance Ltd,76235,,
Chorley Borough Council,http://statistics.data.gov.uk/id/local-authority/30UE,Capital,Capital,Communities,Grants,03002,Capital Expenditure,Capital,ADDRESS REDACTED,25/08/2021,0159935,"5,734.00",Capital,UPS Building and Maintenance Ltd,76235,,
Chorley Borough Council,http://statistics.data.gov.uk/id/local-authority/30UE,Democratic Represent and  Mgnt,1007,Policy & Governance,Exhibitions & Special Events,40158,Miscellaneous Expenses,5034,Filming and editing for documentary films related to Astley Hall renovations and associated works.,11/08/2021,0159473,"2,000.00",Revenue,Urubu Ltd,77584,,
Chorley Borough Council,http://statistics.data.gov.uk/id/local-authority/30UE,Central Support Services,1009,Customer & Digital,Network Line Rental,40248,Communication and Computing,5028,rental charges,06/08/2021,0159439,"2,146.75",Revenue,Virgin Media Payments Ltd,17632,,
Chorley Borough Council,http://statistics.data.gov.uk/id/local-authority/30UE,Central Support Services,1009,Customer & Digital,Network Line Rental,40248,Communication and Computing,5028,charges,06/08/2021,0159439,40.00,Revenue,Virgin Media Payments Ltd,17632,,
Chorley Borough Council,http://statistics.data.gov.uk/id/local-authority/30UE,Central Support Services,1009,Customer & Digital,Network Line Rental,40248,Communication and Computing,5028,rental charge,11/08/2021,0159676,"3,490.74",Revenue,Virgin Media Payments Ltd,17632,,
Chorley Borough Council,http://statistics.data.gov.uk/id/local-authority/30UE,Central Support Services,1009,Customer & Digital,Network Line Rental,40248,Communication and Computing,5028,paper bill,11/08/2021,0159676,1.75,Revenue,Virgin Media Payments Ltd,17632,,
Chorley Borough Council,http://statistics.data.gov.uk/id/local-authority/30UE,Capital,Capital,Policy & Governance,Main Contractor,03007,Capital Expenditure,Capital,"Supply, delivery and installation of microphones and Audio-Visual Equipment as detailed in ITQ and tender response.",13/08/2021,0159456,"106,479.50",Capital,VP-AV Ltd,81653,,
Chorley Borough Council,http://statistics.data.gov.uk/id/local-authority/30UE,Corporate Management,1008,Policy & Governance,Miscellaneous Expenses,40200,Miscellaneous Expenses,5034,Lancastrian AV expansion. Invoice 52791.,06/08/2021,0159490,"4,240.00",Revenue,VP-AV Ltd,81653,,
Chorley Borough Council,http://statistics.data.gov.uk/id/local-authority/30UE,Service Management & Support,1009,Customer & Digital,Supplies-Grounds Maintenance,40025,"Equipment, Furniture & Materia",5023,Supply various summer bedding plants,25/08/2021,0159960,"1,040.40",Revenue,Walkers Nurseries Chester Ltd,81322,,
Chorley Borough Council,http://statistics.data.gov.uk/id/local-authority/30UE,Central Support Services,1009,Customer & Digital,Computer - Support Services,40111,Communication and Computing,5028,Flower Show Wifi implementation,18/08/2021,0159296,"2,830.00",Revenue,Wave Internet,82095,,
Chorley Borough Council,http://statistics.data.gov.uk/id/local-authority/30UE,Elections,1012,Policy & Governance,Rent/Hire Of Premises,20017,Premises Rents,5007,room hire for polling station 6 May 2021,06/08/2021,0159295,256.00,Revenue,Whittle Le Woods Com Hall Trst,16883,,
Chorley Borough Council,http://statistics.data.gov.uk/id/local-authority/30UE,Service Management & Support,1009,Customer & Digital,Supplies-Grounds Maintenance,40025,"Equipment, Furniture & Materia",5023,"Quantity x 12 key padlocks, Quantity x 16 Key padlocks",25/08/2021,0159861,309.20,Revenue,Wilcock & Sons,18008,,
Chorley Borough Council,http://statistics.data.gov.uk/id/local-authority/30UE,Tourism,1039,Policy & Governance,Refreshments,40036,Catering,5024,Willow artists demonstration fee with travel 3 days,13/08/2021,0159722,450.00,Revenue,Willowpool Designs,70614,,
